Period,Quarter,"Recipient Name",City,Province,Country,Title,Language,Genre,Date,"Final Value","Original Value",Type,Purpose,Comments
2022-2023,P3,"Karma Film Inc.",Saskatoon,Saskatchewan,Canada,#VANLIFE,English,Thriller,2022-10-06,2000.00,2000.00,Contribution,"International Marketing Program",0
2022-2023,P3,"Fathom Film Group Ltd.",Toronto,Ontario,Canada,#WhileBlack,English,Documentary,2022-11-04,2000.00,2000.00,Contribution,"International Marketing Program",0
2022-2023,P3,"Attraction Images inc.",Montr�al,Quebec,Canada,"17 en 90",French,Drama,2022-12-13,35000.00,35000.00,Advance,"Development Program",0
2022-2023,P3,"9226-6865 Qu�bec inc.",Montr�al,Quebec,Canada,"2012/ Dans le coeur",French,Documentary,2022-10-19,75000.00,75000.00,Contribution,"Theatrical Documentary Program",0
2022-2023,P3,"Calgary International Film Festival Society",Calgary,Alberta,Canada,"2023 Calgary International Film Festival",0,0,2022-11-28,42038.00,42038.00,Contribution,"Promotion Program",0
2022-2023,P3,"Cin�fest: The Sudbury Film Festival Inc.",Sudbury,Ontario,Canada,"2023 Cinefest Sudbury International Film Festival",0,0,2022-10-19,53535.00,53535.00,Contribution,"Promotion Program",0
2022-2023,P3,"Edmonton International Film Festival Society",Edmonton,Alberta,Canada,"2023 Edmonton International Film Festival",0,0,2022-11-10,23553.00,23553.00,Contribution,"Promotion Program",0
2022-2023,P3,"Atlantic Film Festival Association",Halifax,"Nova Scotia",Canada,"2023 FIN Atlantic International Film Festival + FIN Partners",0,0,2022-10-19,155668.00,155668.00,Contribution,"Promotion Program",0
2022-2023,P3,"Gimli Film Festival Inc.",Gimli,Manitoba,Canada,"2023 Gimli Film Festival",0,0,2022-12-09,16223.00,16223.00,Contribution,"Promotion Program",0
2022-2023,P3,"Canadian Film Institute",Ottawa,Ontario,Canada,"2023 Ottawa International Animation Festival",0,0,2022-11-29,44020.00,44020.00,Contribution,"Promotion Program",0
2022-2023,P3,"Greater Vancouver International Film Festival Society",Vancouver,"British Columbia",Canada,"2023 Vancouver International Film Festival",0,0,2022-11-22,242172.00,242172.00,Contribution,"Promotion Program",0
2022-2023,P3,"Creative Women Workshops Association","West Vancouver","British Columbia",Canada,"2023-2024 Women In the Director's Chair - WIDC",0,0,2022-12-18,55000.00,55000.00,Contribution,"Promotion Program",0
2022-2023,P3,"A M�dia Films inc.",Montr�al,Quebec,Canada,45283,French,"Romantic Comedy",2022-11-18,350000.00,350000.00,Investment,"Production Program",0
2022-2023,P3,"9097-4767 Qu�bec Inc.",Montr�al,Quebec,Canada,4H,French,Drama,2022-11-30,30000.00,30000.00,Advance,"Development Program",0
2022-2023,P3,"1376993 B.C. Ltd.","Garden Bay","British Columbia",Canada,"500 Days in the Wild",English,Documentary,2022-11-10,250000.00,250000.00,Investment,"Theatrical Documentary Program",0
2022-2023,P3,"Federgreen Entertainment Inc.",Toronto,Ontario,Canada,"6 Minutes",English,"Science fiction/Fantasy/Tale",2022-11-04,18200.00,18200.00,Advance,"Development Program",0
2022-2023,P3,"Payam Films","Richmond Hill",Ontario,Canada,"752 IS NOT A NUMBER",English,Documentary,2022-10-25,5000.00,5000.00,Contribution,"International Marketing Program",0
2022-2023,P3,"Payam Films","Richmond Hill",Ontario,Canada,"752 IS NOT A NUMBER",English,Documentary,2022-11-24,4000.00,4000.00,Contribution,"International Marketing Program",0
2022-2023,P3,"LES PRODUCTIONS SLYKID & SKYKID INC.",Montr�al,Quebec,Canada,"� demi-soupir",French,Drama,2022-11-25,30000.00,30000.00,Advance,"Development Program",0
2022-2023,P3,"New Real Films Inc.",Toronto,Ontario,Canada,"A Good Life",English,"Romantic Comedy",2022-11-04,20000.00,20000.00,Advance,"Development Program",0
2022-2023,P3,"Rink Rat Productions Inc.","St. John's",Newfoundland/Labrador,Canada,"A Halloween Fury",English,Comedy,2022-12-13,20000.00,20000.00,Advance,"Development Program",0
2022-2023,P3,"Dark Lullabies Inc. (doing business as DLI Productions)",Montr�al,Quebec,Canada,"A Real Woman",English,Drama,2022-12-15,30000.00,30000.00,Advance,"Development Program",0
2022-2023,P3,"Level Film Inc.",Toronto,Ontario,Canada,"A Small Fortune",English,Thriller,2022-11-08,30084.00,32625.00,Advance,"Marketing Program","Amended Contract Signed 21-Dec-2021"
2022-2023,P3,"PUNK Films Inc.",Toronto,Ontario,Canada,"A Song for Jo Jo",English,Drama,2022-10-17,30000.00,30000.00,Advance,"Development Program",0
2022-2023,P3,"14471628 Canada Inc.",Toronto,Ontario,Canada,"A Woman Escapes",English,Drama,2022-12-08,2000.00,2000.00,Contribution,"International Marketing Program",0
2022-2023,P3,"9187-1608 Qu�bec inc",Longueuil,Quebec,Canada,Ababouin�,French,"Romantic Comedy",2022-12-09,1500000.00,1500000.00,Investment,"Production Program",0
2022-2023,P3,"Lily Pictures Inc.","North Vancouver","British Columbia",Canada,Abadan,English,Drama,2022-12-02,30000.00,30000.00,Advance,"Development Program",0
2022-2023,P3,"Academy Of Canadian Cinema And Television - Acad�mie Canadienne du Cin�ma et de la T�l�vision",Toronto,Ontario,Canada,"Academy Partnership (Various Initiatives)",0,0,2022-10-04,275000.00,275000.00,Contribution,"Promotion Program",0
2022-2023,P3,"Level Film Inc.",Toronto,Ontario,Canada,"Adult Adoption",English,Drama,2022-12-21,13500.00,13500.00,Advance,"Marketing Program",0
2022-2023,P3,"Eye Steel Film Inc.",Montr�al,Quebec,Canada,Aftermath,English,Documentary,2022-12-09,30000.00,30000.00,Advance,"Development Program",0
2022-2023,P3,"Lumanity Productions Inc.",Toronto,Ontario,Canada,"Agent Knight",English,"Historical Drama",2022-10-11,60000.00,60000.00,Advance,"Development Program",0
2022-2023,P3,"Akashi Pictures Inc.",Burnaby,"British Columbia",Canada,AKASHI,Other,Drama,2022-12-23,830200.00,830200.00,Investment,"Production Program",0
2022-2023,P3,"Microscope Inc.",Montr�al,Quebec,Canada,Alfred,French,"Science fiction/Fantasy/Tale",2022-12-06,1880.00,29500.00,Advance,"Development Program","Amended Contract Signed 29-Nov-2017"
2022-2023,P3,"Productions Caramel Film Inc.",Montr�al,Quebec,Canada,Alibi,French,Mystery/Crime/Police,2022-10-27,16254.00,16254.00,Advance,"Development Program",0
2022-2023,P3,"Alberta Media Production Industries  Association (AMPIA)",Edmonton,Alberta,Canada,"AMPIA Professional Development Initiatives",0,0,2022-11-10,20000.00,20000.00,Contribution,"Promotion Program",0
2022-2023,P3,"Level Film Inc.",Toronto,Ontario,Canada,"And Still I Sing",English,Documentary,2022-12-21,23130.00,23130.00,Advance,"Marketing Program",0
2022-2023,P3,"AOW Productions Inc.",Toronto,Ontario,Canada,"Any Other Way: The Jackie Shane Story",English,Documentary,2022-12-12,350000.00,350000.00,Investment,"Theatrical Documentary Program",0
2022-2023,P3,"Les Films Opale Inc.",Montr�al,Quebec,Canada,Arlette,French,Drama,2022-10-04,5000.00,5000.00,Contribution,"International Marketing Program",0
2022-2023,P3,"Les Films Opale Inc.",Montr�al,Quebec,Canada,Arlette,French,Drama,2022-10-05,2000.00,2000.00,Contribution,"International Marketing Program",0
2022-2023,P3,"1976 Productions Inc.",Montr�al,Quebec,Canada,"Arr�te la com�die",French,Comedy,2022-11-25,25000.00,25000.00,Advance,"Development Program",0
2022-2023,P3,"Wildling Pictures Inc.",Dundas,Ontario,Canada,"As Fast As You Can",English,Thriller,2022-10-27,15000.00,15000.00,Advance,"Development Program",0
2022-2023,P3,"Productions Mustang III Inc.",Montr�al,Quebec,Canada,"Au boute du rien pantoute",French,Documentary,2022-10-21,150000.00,150000.00,Contribution,"Theatrical Documentary Program",0
2022-2023,P3,"Outsider Films Lda",Lisbon,"Unknown province 0",Portugal,"Au revoir le bonheur",French,Comedy,2022-12-23,5000.00,5000.00,Contribution,"Export Assistance Program",0
2022-2023,P3,"2495834 Ontario Inc.",Toronto,Ontario,Canada,"AUDIOPHILIA: ADVENTURES IN THE WORLD OF HI-FI",English,Documentary,2022-12-21,125000.00,125000.00,Investment,"Theatrical Documentary Program",0
2022-2023,P3,"Jane Losa Films Inc.",Montr�al,Quebec,Canada,"AVEC MAX (Aka Get lost with Max)",French,Drama,2022-11-18,30000.00,30000.00,Advance,"Development Program",0
2022-2023,P3,"Shocked Pictures Inc.",Halifax,"Nova Scotia",Canada,Aversion,English,Horror,2022-12-21,490000.00,490000.00,Contribution,"Production Program",0
2022-2023,P3,"Metafilms Inc.",Montr�al,Quebec,Canada,"Back Home",English,Documentary,2022-11-10,25000.00,25000.00,Advance,"Development Program",0
2022-2023,P3,"Bam Bam Film Inc.",Toronto,Ontario,Canada,"Bam Bam: The Story of Sister Nancy",English,Documentary,2022-11-10,2000.00,2000.00,Contribution,"International Marketing Program",0
2022-2023,P3,"Mongrel Media Inc.",Toronto,Ontario,Canada,BEANS,English,"Historical Drama",2022-11-08,146985.00,383763.00,Advance,"Marketing Program","Amended Contract Signed 09-Jun-2021"
2022-2023,P3,"GAME THEORY FILMS INC.",Toronto,Ontario,Canada,"Becoming A Queen",English,Documentary,2022-11-01,15000.00,15000.00,Advance,"Marketing Program",0
2022-2023,P3,"Attraction Images inc.",Montr�al,Quebec,Canada,Belle-m�re,French,Drama,2022-12-13,30000.00,30000.00,Advance,"Development Program",0
2022-2023,P3,"Serendipity Point Films Inc.",Toronto,Ontario,Canada,"Below Her Mouth II",English,Drama,2022-11-17,15000.00,15000.00,Advance,"Development Program",0
2022-2023,P3,"Sir Harry Films Inc.",Toronto,Ontario,Canada,Benny,English,"Historical Drama",2022-11-02,40000.00,40000.00,Advance,"Development Program",0
2022-2023,P3,"CUT/OFF/TAIL Pictures Inc.","West Pennant","Nova Scotia",Canada,Beshader,English,"Science fiction/Fantasy/Tale",2022-12-23,20000.00,20000.00,Advance,"Development Program",0
2022-2023,P3,"Mongrel Media Inc.",Toronto,Ontario,Canada,"Best Sellers",English,Comedy,2022-11-21,77436.00,121680.00,Advance,"Marketing Program","Amended Contract Signed 15-Mar-2022"
2022-2023,P3,"Spirit Moon Productions Inc.",Mississauga,Ontario,Canada,"Between the Lines",English,Drama,2022-12-08,30000.00,30000.00,Advance,"Development Program",0
2022-2023,P3,"A Media Inc.",Montr�al,Quebec,Canada,"Bienvenue chez vous",French,Comedy,2022-10-20,30000.00,30000.00,Advance,"Development Program",0
2022-2023,P3,"Eye Steel Film Distribution inc.",Montr�al,Quebec,Canada,"Big Fight in Little Chinatown",English,Documentary,2022-11-02,5000.00,5000.00,Contribution,"International Marketing Program",0
2022-2023,P3,"9174-5018 Qu�bec inc.",Montr�al,Quebec,Canada,Billy,French,Documentary,2022-12-19,220000.00,220000.00,Contribution,"Theatrical Documentary Program",0
2022-2023,P3,"Wildling Pictures Inc.",Dundas,Ontario,Canada,Bingo,English,Drama,2022-10-27,15000.00,15000.00,Advance,"Development Program",0
2022-2023,P3,"K.O. 24 Inc.",Montr�al,Quebec,Canada,"Black Baby : Un r�ve de garage",French,Comedy,2022-11-01,30000.00,30000.00,Advance,"Development Program",0
2022-2023,P3,"Rhombus Media Inc.",Toronto,Ontario,Canada,BlackBerry,English,Drama,2022-12-02,25000.00,25000.00,Contribution,"International Marketing Program",0
2022-2023,P3,"BLOODY HELL PRODUCTIONS INC.",Toronto,Ontario,Canada,"Bloody Hell",English,Drama,2022-10-07,2200000.00,2000000.00,Investment,"Production Program","Amended Contract Signed 18-Mar-2022"
2022-2023,P3,"Bunk 11 Pictures Inc.",Ottawa,Ontario,Canada,"Blue Christmas",English,Comedy,2022-12-15,25000.00,25000.00,Advance,"Development Program",0
2022-2023,P3,"Babe Nation Creations Inc.",Toronto,Ontario,Canada,"Bonjour Tristesse",English,Drama,2022-12-19,30000.00,30000.00,Advance,"Development Program",0
2022-2023,P3,"Buffalo Gal Pictures Inc.",Winnipeg,Manitoba,Canada,"Boob Job",English,Comedy,2022-11-23,30000.00,30000.00,Advance,"Development Program",0
2022-2023,P3,"Productions 10e Ave Inc.",Saint-Augustin-de-Desmaures,Quebec,Canada,"Brad, le jamboree des g�nies",French,Comedy,2022-10-20,1550.00,1550.00,Contribution,"International Marketing Program",0
2022-2023,P3,"First Generation Films Inc.",Toronto,Ontario,Canada,"Bronx 79",English,Documentary,2022-12-15,20000.00,20000.00,Advance,"Development Program",0
2022-2023,P3,"Microscope Inc.",Montr�al,Quebec,Canada,"Buenas noches, mon amour",French,Drama,2022-12-12,20000.00,20000.00,Advance,"Development Program",0
2022-2023,P3,"Buffy Documentary Productions Inc.",Toronto,Ontario,Canada,"Buffy Sainte-Marie: Carry It On",English,Documentary,2022-10-26,450000.00,150000.00,Investment,"Theatrical Documentary Program","Amended Contract Signed 24-Mar-2022"
2022-2023,P3,"White Pine Pictures Inc.",Toronto,Ontario,Canada,"Buffy Sainte-Marie: Carry It On",English,Documentary,2022-12-21,5000.00,5000.00,Contribution,"International Marketing Program",0
2022-2023,P3,"Coop Vid�o de Montr�al",Montr�al,Quebec,Canada,Bungalow,French,Comedy,2022-11-09,5000.00,5000.00,Contribution,"International Marketing Program",0
2022-2023,P3,"Maja Jacob Films Ltd.",Moncton,"New Brunswick",Canada,"Burtts Cove",English,Drama,2022-10-07,30000.00,30000.00,Advance,"Development Program",0
2022-2023,P3,"Rink Rat Productions Inc.","St. John's",Newfoundland/Labrador,Canada,"By The People (aka POSTAL)",English,Drama,2022-12-13,20000.00,20000.00,Advance,"Development Program",0
2022-2023,P3,"Shut Up & Colour Pictures Inc.",Halifax,"Nova Scotia",Canada,"Camp Golem",English,Thriller,2022-11-09,30000.00,30000.00,Advance,"Development Program",0
2022-2023,P3,"Academy Of Canadian Cinema And Television - Acad�mie Canadienne du Cin�ma et de la T�l�vision",Toronto,Ontario,Canada,"Canadian Screen Awards 2023",0,0,2022-12-05,155000.00,155000.00,Contribution,"Promotion Program",0
2022-2023,P3,"Couronne Nord Inc.",Montr�al,Quebec,Canada,Carcajou,French,Drama,2022-12-23,2000.00,2000.00,Contribution,"International Marketing Program",0
2022-2023,P3,"Vortex Media Limited",Toronto,Ontario,Canada,"Carmen Has Been Touched",English,Drama,2022-11-02,44910.00,44910.00,Advance,"Marketing Program",0
2022-2023,P3,"Intuitive Pictures Inc.",Montr�al,Quebec,Canada,Cascade,English,Documentary,2022-12-09,30000.00,30000.00,Advance,"Development Program",0
2022-2023,P3,"1432146 Ontario Limited",Toronto,Ontario,Canada,"Category: Woman",English,Documentary,2022-10-27,5000.00,5000.00,Contribution,"International Marketing Program",0
2022-2023,P3,"9219-3010 Qu�bec Inc.",Montr�al,Quebec,Canada,"Ce qui hante marl�ne",French,Horror,2022-11-30,20000.00,20000.00,Advance,"Development Program",0
2022-2023,P3,"Terre Innue Inc.",Wendake,Quebec,Canada,"Ces liens que nous ne voyons pas",French,Documentary,2022-12-16,30000.00,30000.00,Advance,"Development Program",0
2022-2023,P3,"9402-0492 Qu�bec inc.",Montr�al,Quebec,Canada,"Cette maison",French,Documentary,2022-11-08,2000.00,2000.00,Contribution,"International Marketing Program",0
2022-2023,P3,"Elevation Pictures Corp.",Toronto,Ontario,Canada,CHARLOTTE,English,"Historical Drama",2022-12-14,124466.00,124466.00,Advance,"Marketing Program",0
2022-2023,P3,"January Films Ltd.",Toronto,Ontario,Canada,CHARLOTTE,English,"Historical Drama",2022-10-27,50000.00,50000.00,Contribution,"International Marketing Program",0
2022-2023,P3,"Parkland Entertainment Limited",Dorset,,"United Kingdom",CHARLOTTE,English,"Historical Drama",2022-12-15,44000.00,44000.00,Contribution,"Export Assistance Program",0
2022-2023,P3,"Colonelle films inc.",Montr�al,Quebec,Canada,"Chasing Monsters",English,"Science fiction/Fantasy/Tale",2022-11-03,30000.00,30000.00,Advance,"Development Program",0
2022-2023,P3,"Chesapeake Shores S6 Productions Inc.",Vancouver,"British Columbia",Canada,"Chesapeake Shores - Season 6 Short-Term Compensation Fund 2022-2023  Chesapeake Shores S6 Productions Inc.",0,0,2022-10-07,334884.38,0.00,Contribution,"COVID-19 Emergency Relief Fund","Amended Contract Signed 30-Mar-2022"
2022-2023,P3,"Pimiento M�dias Inc.",Montr�al,Quebec,Canada,"Chevette 83",French,Drama,2022-11-28,30000.00,30000.00,Advance,"Development Program",0
2022-2023,P3,"Film Chien Blanc Inc.",Montreal,Quebec,Canada,"CHIEN BLANC",French,Drama,2022-11-18,5000.00,5000.00,Contribution,"International Marketing Program",0
2022-2023,P3,"Sph�re Films inc.",Montr�al,Quebec,Canada,"CHIEN BLANC",French,Drama,2022-11-07,126096.00,126096.00,Advance,"Marketing Program",0
2022-2023,P3,"Rhombus Media Inc.",Toronto,Ontario,Canada,"Child's Play (aka The Blue Cap)",English,Drama,2022-11-01,47950.00,47950.00,Advance,"Development Program",0
2022-2023,P3,"K.O. 24 Inc.",Montr�al,Quebec,Canada,Chokola,French,Drama,2022-11-01,30000.00,30000.00,Advance,"Development Program",0
2022-2023,P3,"Big Cedar Films Inc.",Toronto,Ontario,Canada,"Chop Suey Nation",English,Drama,2022-12-20,30000.00,30000.00,Advance,"Development Program",0
2022-2023,P3,"Classy Productions Inc.",Burnaby,"British Columbia",Canada,"Christmas Class Reunion Short-Term Compensation Fund 2022-2023  Classy Productions Inc.",0,0,2022-12-16,125066.07,0.00,Contribution,"COVID-19 Emergency Relief Fund","Amended Contract Signed 08-Sep-2022"
2022-2023,P3,"Cin� Qu�bec",Boucherville,Quebec,Canada,"Cin� Qu�bec",0,0,2022-11-28,75000.00,75000.00,Contribution,"Promotion Program",0
2022-2023,P3,"1371097 Ontario Ltd. O/A CaribbeanTales",Toronto,Ontario,Canada,Claudia,English,"Historical Drama",2022-12-12,25000.00,25000.00,Advance,"Development Program",0
2022-2023,P3,"Productions Karaman inc.",Brossard,Quebec,Canada,"Comme si de rien n'�tait",Other,Drama,2022-11-25,25000.00,25000.00,Advance,"Development Program",0
2022-2023,P3,"Antoine Bourges Films Ltd.",Toronto,Ontario,Canada,"Concrete Valley",English,Drama,2022-10-14,24997.00,24997.00,Contribution,"International Marketing Program",0
2022-2023,P3,"9393-2135 Qu�bec Inc.",Montr�al,Quebec,Canada,Confessions,French,Mystery/Crime/Police,2022-10-24,2117173.00,2150000.00,Investment,"Production Program","Amended Contract Signed 01-Oct-2019"
2022-2023,P3,"9151-1766 Qu�bec Inc.",Montr�al,Quebec,Canada,Connect�es,French,Drama,2022-12-14,30000.00,30000.00,Advance,"Development Program",0
2022-2023,P3,"Serendipity Point Films Inc.",Toronto,Ontario,Canada,Consumed,English,Drama,2022-11-17,85000.00,85000.00,Advance,"Development Program",0
2022-2023,P3,"Experimental Forest Films Inc.","New Westminster","British Columbia",Canada,"Controlled Burn",English,Drama,2022-11-01,30000.00,30000.00,Advance,"Development Program",0
2022-2023,P3,"Collective Pictures Inc.",Toronto,Ontario,Canada,Cozumel,English,Horror,2022-11-16,50000.00,50000.00,Advance,"Development Program",0
2022-2023,P3,"Crazy8s Film Society",Vancouver,"British Columbia",Canada,"Crazy8s 2023",0,0,2022-10-20,20000.00,20000.00,Contribution,"Promotion Program",0
2022-2023,P3,"Chronicle Pictures Incorporated",Halifax,"Nova Scotia",Canada,"Creative Demons",English,Thriller,2022-10-27,30000.00,30000.00,Advance,"Development Program",0
2022-2023,P3,"Item 7 Inc.",Montr�al,Quebec,Canada,"Cr�ve avec moi",French,Drama,2022-10-07,35000.00,35000.00,Advance,"Development Program",0
2022-2023,P3,"Les Productions des Films de l'Autre Inc.",Montr�al,Quebec,Canada,"Dans le Triangle des Bermudes",French,Documentary,2022-12-08,30000.00,30000.00,Advance,"Development Program",0
2022-2023,P3,"Jobro Productions Inc.",Toronto,Ontario,Canada,"Dear Mama",English,Drama,2022-11-08,25000.00,25000.00,Advance,"Development Program",0
2022-2023,P3,"Diana Dai Communications Inc.",Toronto,Ontario,Canada,"Dear Niece",English,Drama,2022-12-16,30000.00,30000.00,Advance,"Development Program",0
2022-2023,P3,"Resolute Films Inc.",Toronto,Ontario,Canada,"Death of a Mad Trapper",English,"Historical Drama",2022-12-08,30000.00,30000.00,Advance,"Development Program",0
2022-2023,P3,"CarpeDiem Film & TV Inc.",Montr�al,Quebec,Canada,"D�brid�s (aka L'�curie en folie) / Unstable",English,Comedy,2022-11-21,15120.00,15120.00,Advance,"Development Program",0
2022-2023,P3,"9342-2947 QU�BEC INC.",Sherbrooke,Quebec,Canada,"Des hommes la nuit",French,Comedy,2022-12-09,60000.00,60000.00,Contribution,"Production Program",0
2022-2023,P3,"Screen Nova Scotia Industry Association",Halifax,"Nova Scotia",Canada,"Diversity Mentorship Program",0,0,2022-12-22,25000.00,25000.00,Contribution,"Promotion Program",0
2022-2023,P3,"Canesugar Mediaworks Ltd.",Toronto,Ontario,Canada,"Do or Die",English,"Historical Drama",2022-12-07,30000.00,30000.00,Advance,"Development Program",0
2022-2023,P3,"Documentary Organization of Canada",Toronto,Ontario,Canada,"DOC Atlantic Breakthrough Program",0,0,2022-12-14,25000.00,25000.00,Contribution,"Promotion Program",0
2022-2023,P3,"Reign Films Inc.",Vancouver,"British Columbia",Canada,Dolores,English,Drama,2022-12-02,30000.00,30000.00,Advance,"Development Program",0
2022-2023,P3,"Honalee Productions Inc.",Vancouver,"British Columbia",Canada,Dose,English,Horror,2022-11-18,30800.00,30800.00,Advance,"Development Program",0
2022-2023,P3,"9219-3010 Qu�bec Inc.",Montr�al,Quebec,Canada,"Douce Pri�re",French,Drama,2022-11-30,20000.00,20000.00,Advance,"Development Program",0
2022-2023,P3,"Tobo M�dia Inc.",Montr�al,Quebec,Canada,"Dounia et la princesse d'Alep",French,Drama,2022-10-27,2000.00,2000.00,Contribution,"International Marketing Program",0
2022-2023,P3,"Coop Vid�o de Montr�al",Montr�al,Quebec,Canada,Douze,French,Drama,2022-11-04,60000.00,60000.00,Advance,"Development Program",0
2022-2023,P3,"The Documentary Media Society",Vancouver,"British Columbia",Canada,"DOXA Documentary Film Festival",0,0,2022-11-01,85815.00,85815.00,Contribution,"Promotion Program",0
2022-2023,P3,"Mazewalker Films Inc.","Bear River","Nova Scotia",Canada,Drawknife,Indigenous,Thriller,2022-12-05,24000.00,24000.00,Advance,"Development Program",0
2022-2023,P3,"Drive Back Home Productions Inc.",Toronto,Ontario,Canada,"Drive Back Home",English,Drama,2022-11-23,740000.00,740000.00,Investment,"Production Program",0
2022-2023,P3,"Flying Up Moon Inc.",Edmonton,Alberta,Canada,"Dusk and Dawn",English,Comedy,2022-11-03,670000.00,470000.00,Investment,"Production Program","Amended Contract Signed 15-Mar-2022"
2022-2023,P3,"9387-4634 Quebec Inc.",Montreal,Quebec,Canada,Edith,French,Drama,2022-12-14,25000.00,25000.00,Advance,"Development Program",0
2022-2023,P3,"Max Films Inc.",Montr�al,Quebec,Canada,"�L�O & NOVA",French,Thriller,2022-11-03,30000.00,30000.00,Advance,"Development Program",0
2022-2023,P3,"Cardinal Pictures Inc.","East York",Ontario,Canada,"End of Sorrow",English,Drama,2022-11-17,15000.00,15000.00,Advance,"Development Program",0
2022-2023,P3,"Lofty Sky Entertainment Inc.",Toronto,Ontario,Canada,"Eternal Spring",English,Documentary,2022-11-10,75000.00,75000.00,Advance,"Marketing Program",0
2022-2023,P3,"Lofty Sky Entertainment Inc.",Toronto,Ontario,Canada,"Eternal Spring",English,Documentary,2022-11-24,145000.00,145000.00,Contribution,"International Marketing Program",0
2022-2023,P3,"Lofty Sky Entertainment Inc.",Toronto,Ontario,Canada,"Eternal Spring",English,Documentary,2022-11-17,2000.00,2000.00,Contribution,"International Marketing Program",0
2022-2023,P3,"Lofty Sky Entertainment Inc.",Toronto,Ontario,Canada,"Eternal Spring",English,Documentary,2022-11-21,2000.00,2000.00,Contribution,"International Marketing Program",0
2022-2023,P3,"Bataillon Films Inc.",Montr�al,Quebec,Canada,Eug�nie,French,"Science fiction/Fantasy/Tale",2022-11-21,30000.00,30000.00,Advance,"Development Program",0
2022-2023,P3,"9342-2947 QU�BEC INC.",Sherbrooke,Quebec,Canada,Eux,French,Mystery/Crime/Police,2022-11-24,30000.00,30000.00,Advance,"Development Program",0
2022-2023,P3,"art et essai inc.",Montr�al,Quebec,Canada,"Even in Darkness",English,"Historical Drama",2022-12-19,30000.00,30000.00,Advance,"Development Program",0
2022-2023,P3,"Merit Motion Pictures Inc.",Winnipeg,Manitoba,Canada,"Everest Dark",English,Documentary,2022-11-01,2000.00,2000.00,Contribution,"International Marketing Program",0
2022-2023,P3,"EMA FILMS INC.",Montr�al,Quebec,Canada,"Evil Fire",English,"Science fiction/Fantasy/Tale",2022-11-21,25000.00,25000.00,Advance,"Development Program",0
2022-2023,P3,"Federgreen Entertainment Inc.",Toronto,Ontario,Canada,"Expired Existence",English,Horror,2022-11-04,20800.00,20800.00,Advance,"Development Program",0
2022-2023,P3,"9438-1043 Qu�bec inc.",Montr�al,Quebec,Canada,"Falcon Lake",French,Drama,2022-11-02,475000.00,425000.00,Advance,"Production Program","Amended Contract Signed 14-Jul-2021"
2022-2023,P3,"Sph�re Films inc.",Montr�al,Quebec,Canada,"Falcon Lake",French,Drama,2022-11-01,128886.00,128886.00,Advance,"Marketing Program",0
2022-2023,P3,Tandem,Paris,,France,"Falcon Lake",French,Drama,2022-12-09,20000.00,20000.00,Contribution,"Export Assistance Program",0
2022-2023,P3,"Rhombus Media Inc.",Toronto,Ontario,Canada,"Falling Bodies",English,Drama,2022-11-01,51993.00,51993.00,Advance,"Development Program",0
2022-2023,P3,"Diaspora Creative Inc",Burnaby,"British Columbia",Canada,"Fara: An impolite fairytale",English,"Science fiction/Fantasy/Tale",2022-12-15,30000.00,30000.00,Advance,"Development Program",0
2022-2023,P3,"CUT/OFF/TAIL Pictures Inc.","West Pennant","Nova Scotia",Canada,Feed,English,Thriller,2022-12-23,20000.00,20000.00,Advance,"Development Program",0
2022-2023,P3,"Productions 10e Ave Inc.",Saint-Augustin-de-Desmaures,Quebec,Canada,"F�lix et le fant�me de M. Fred",French,Action/Adventure,2022-10-04,35000.00,35000.00,Advance,"Development Program",0
2022-2023,P3,"EMA FILMS INC.",Montr�al,Quebec,Canada,"Ferme ta gueule pis chante",French,Documentary,2022-11-21,25000.00,25000.00,Advance,"Development Program",0
2022-2023,P3,"Festival du film de l'Outaouais",Montr�al,Quebec,Canada,"Festival du film de l'Outaouais",0,0,2022-11-09,51069.00,51069.00,Contribution,"Promotion Program",0
2022-2023,P3,"Festival Fantasia",Montr�al,Quebec,Canada,"Festival Fantasia + March� Fronti�res 2023",0,0,2022-11-29,223719.00,223719.00,Contribution,"Promotion Program",0
2022-2023,P3,"Vues d'Afrique",Montr�al,Quebec,Canada,"Festival international de cin�ma Vues d'Afrique",0,0,2022-11-08,92860.00,92860.00,Contribution,"Promotion Program",0
2022-2023,P3,"Terres en vues / Soci�t� pour la diffusion de la culture autochtone",Montr�al,Quebec,Canada,"Festival Pr�sence autochtone 2023",0,0,2022-11-10,16166.00,16166.00,Contribution,"Promotion Program",0
2022-2023,P3,"Caravane Films Productions",Chicoutimi,Quebec,Canada,"Festival REGARD / March� du court",0,0,2022-10-19,187159.00,187159.00,Contribution,"Promotion Program",0
2022-2023,P3,"Vieille Am�rique Inc.",Montr�al,Quebec,Canada,"Filles en libert�",French,Comedy,2022-11-04,20000.00,20000.00,Advance,"Development Program",0
2022-2023,P3,"Banger Films Inc.",Toronto,Ontario,Canada,Firebrand,English,Documentary,2022-11-08,28560.00,28560.00,Advance,"Development Program",0
2022-2023,P3,"Films S�ville Inc. (Les)",Montr�al,Quebec,Canada,Fireheart,English,Comedy,2022-12-06,103476.00,103476.00,Advance,"Marketing Program",0
2022-2023,P3,"Independent Edge Films Inc.",Vancouver,"British Columbia",Canada,"Forever Girls",English,Thriller,2022-11-10,15207.00,15207.00,Advance,"Development Program",0
2022-2023,P3,"Vues d'Afrique",Montr�al,Quebec,Canada,"Formation producteurs destin�e aux professionnels �mergents",0,0,2022-10-04,15000.00,15000.00,Contribution,"Promotion Program",0
2022-2023,P3,"Christal Films Productions Inc.",Montr�al,Quebec,Canada,"Fou de toi !",French,Musical,2022-12-07,65000.00,65000.00,Advance,"Development Program",0
2022-2023,P3,"Kino Lorber Inc.","New York","New York","United States","Framing Agnes",English,Documentary,2022-11-16,30000.00,30000.00,Contribution,"Export Assistance Program",0
2022-2023,P3,"Mongrel Media Inc.",Toronto,Ontario,Canada,"Framing Agnes",English,Documentary,2022-12-15,35280.00,35280.00,Advance,"Marketing Program",0
2022-2023,P3,"EMA FILMS INC.",Montr�al,Quebec,Canada,"Frankenstein de Bergerac",French,Horror,2022-11-21,25000.00,25000.00,Advance,"Development Program",0
2022-2023,P3,"Echo Media Inc.",Montr�al,Quebec,Canada,Furies,French,Comedy,2022-11-04,15000.00,15000.00,Advance,"Development Program",0
2022-2023,P3,"Motion 58 Entertainment Inc.",Vancouver,"British Columbia",Canada,"Ghost Thriller",English,Drama,2022-10-28,60000.00,60000.00,Advance,"Development Program",0
2022-2023,P3,"Jobro Productions Inc.",Toronto,Ontario,Canada,Glitch,English,"Science fiction/Fantasy/Tale",2022-11-08,75000.00,75000.00,Advance,"Development Program",0
2022-2023,P3,"GATE 67 FILMS INC",Lethbridge,Alberta,Canada,"Gloria Gaffney is a Gangster",English,Comedy,2022-11-16,30000.00,30000.00,Advance,"Development Program",0
2022-2023,P3,"Fae Pictures Inc.",Toronto,Ontario,Canada,"Granny Lee",English,"Historical Drama",2022-12-09,2000.00,2000.00,Contribution,"International Marketing Program",0
2022-2023,P3,"Mad Samurai Productions Inc.",Richmond,"British Columbia",Canada,GREEN,English,Drama,2022-10-01,30000.00,30000.00,Advance,"Development Program",0
2022-2023,P3,"Films Outsiders Inc. (Les)",Verdun,Quebec,Canada,"Habiller le coeur",French,Drama,2022-10-27,60000.00,60000.00,Advance,"Development Program",0
2022-2023,P3,"The Kolasky Company Inc.",Toronto,Ontario,Canada,"History of the New World",English,"Science fiction/Fantasy/Tale",2022-10-18,42955.00,42955.00,Advance,"Development Program",0
2022-2023,P3,"9219-3010 Qu�bec Inc.",Montr�al,Quebec,Canada,Hivernia,French,Drama,2022-11-30,20000.00,20000.00,Advance,"Development Program",0
2022-2023,P3,"Darius Films Inc.",Toronto,Ontario,Canada,"Holiday Pet Hotel",English,"Romantic Comedy",2022-11-28,63000.00,63000.00,Advance,"Development Program",0
2022-2023,P3,"Couronne Nord Inc.",Montr�al,Quebec,Canada,"HO-MA 4",French,"Science fiction/Fantasy/Tale",2022-11-22,30000.00,30000.00,Advance,"Development Program",0
2022-2023,P3,"9474-8613 Qu�bec Inc.",Montr�al,Quebec,Canada,"H�TEL SILENCE",French,Drama,2022-11-25,1175000.00,1175000.00,Investment,"Production Program",0
2022-2023,P3,"Fathom Film Group Ltd.",Toronto,Ontario,Canada,"Hunting in Packs",English,Documentary,2022-11-04,2000.00,2000.00,Contribution,"International Marketing Program",0
2022-2023,P3,"CarpeDiem Film & TV Inc.",Montr�al,Quebec,Canada,Hyde'n'Zeke,English,Comedy,2022-11-21,15400.00,15400.00,Advance,"Development Program",0
2022-2023,P3,"Sher Vancouver LGBTQ Friends Society",Delta,"British Columbia",Canada,"I, Migrant",English,Documentary,2022-12-17,30000.00,30000.00,Advance,"Development Program",0
2022-2023,P3,"Italian Contemporary Film Festival",Toronto,Ontario,Canada,"ICFF - Inclucity Festival",0,0,2022-10-12,95000.00,95000.00,Contribution,"Promotion Program",0
2022-2023,P3,"Northern Visions Independent Video & Film Association",Toronto,Ontario,Canada,"Images Festival",0,0,2022-10-25,60000.00,60000.00,Contribution,"Promotion Program",0
2022-2023,P3,"Living On Light Pictures Inc.","New Westminster","British Columbia",Canada,Inedia,English,Drama,2022-10-25,500000.00,450000.00,Investment,"Production Program","Amended Contract Signed 17-Feb-2021"
2022-2023,P3,"Film Forge Productions Inc.",Toronto,Ontario,Canada,"Infinity Pool",English,Horror,2022-11-15,25000.00,25000.00,Contribution,"International Marketing Program",0
2022-2023,P3,"Mosaic Entertainment Inc.","Port Moody","British Columbia",Canada,Inheritance,English,Drama,2022-12-08,30000.00,30000.00,Advance,"Development Program",0
2022-2023,P3,"The Inside Out LGBT Film Festival Inc.",Toronto,Ontario,Canada,"Inside Out 2SLGBTQ+ Film Festival",0,0,2022-10-21,205000.00,205000.00,Contribution,"Promotion Program",0
2022-2023,P3,"1173166 B.C. Ltd.",Vancouver,"British Columbia",Canada,Iridescence,English,Documentary,2022-12-13,30000.00,30000.00,Advance,"Development Program",0
2022-2023,P3,"Aircraft Pictures Limited",Toronto,Ontario,Canada,Issunboshi,English,"Science fiction/Fantasy/Tale",2022-11-22,30000.00,30000.00,Advance,"Development Program",0
2022-2023,P3,"Murmur Media Incorporated",Toronto,Ontario,Canada,"Jackie's Diary",English,Drama,2022-12-20,30000.00,30000.00,Advance,"Development Program",0
2022-2023,P3,"Vieille Am�rique Inc.",Montr�al,Quebec,Canada,"J'ai perdu mon mari",French,Comedy,2022-11-04,20000.00,20000.00,Advance,"Development Program",0
2022-2023,P3,"OBJECTIF 9 INC.",Montr�al,Quebec,Canada,"Je suis un produit",French,Comedy,2022-12-19,30000.00,30000.00,Advance,"Development Program",0
2022-2023,P3,"Productions de la Ruelle Inc.",Montr�al,Quebec,Canada,"Je vous salue salope: La misogynie au temps du num�rique",French,Documentary,2022-10-25,2000.00,2000.00,Contribution,"International Marketing Program",0
2022-2023,P3,"Chemin�e Deux Inc.",Laval,Quebec,Canada,"Jou Va Jou Vien",French,"Science fiction/Fantasy/Tale",2022-12-19,25000.00,25000.00,Advance,"Development Program",0
2022-2023,P3,"Yzanakio Productions Inc.",Outremont,Quebec,Canada,Kanaval,French,"Science fiction/Fantasy/Tale",2022-12-19,800000.00,800000.00,Investment,"Production Program",0
2022-2023,P3,"Urbansoul Inc.",Toronto,Ontario,Canada,"Karen's Wedding",English,Drama,2022-10-07,30000.00,30000.00,Advance,"Development Program",0
2022-2023,P3,"Fae Pictures Inc.",Toronto,Ontario,Canada,Kasino,English,Drama,2022-12-20,30000.00,30000.00,Advance,"Development Program",0
2022-2023,P3,"Mercury Films Inc.",Toronto,Ontario,Canada,"Kitchen Door: The Genius of Christiane Pflug",English,Documentary,2022-10-17,60000.00,60000.00,Advance,"Development Program",0
2022-2023,P3,"Bravo Charlie inc.",Montr�al,Quebec,Canada,"La Coureuse",French,Drama,2022-10-07,30000.00,30000.00,Advance,"Development Program",0
2022-2023,P3,"EMA FILMS INC.",Montr�al,Quebec,Canada,"La Femme Cass�e",French,Horror,2022-11-21,25000.00,25000.00,Advance,"Development Program",0
2022-2023,P3,"T�l�fiction Productions inc.",Montr�al,Quebec,Canada,"La machine",French,Thriller,2022-12-09,30000.00,30000.00,Advance,"Development Program",0
2022-2023,P3,"Possibles M�dia inc.",Montr�al,Quebec,Canada,"LA MAL�DICTION DE LA FOR�T PAS-DE-FOND",French,Comedy,2022-12-19,30000.00,30000.00,Advance,"Development Program",0
2022-2023,P3,"CarpeDiem Film & TV Inc.",Montr�al,Quebec,Canada,"La Montagne des r�ves (aka Le Roi des R�ves)",French,Action/Adventure,2022-11-21,29480.00,29480.00,Advance,"Development Program",0
2022-2023,P3,"10620114 CANADA INC.",Montr�al,Quebec,Canada,"La nuit des mille et une",French,"Science fiction/Fantasy/Tale",2022-11-29,30000.00,30000.00,Advance,"Development Program",0
2022-2023,P3,"9286-4883 Qu�bec (F.A.S.  L'embuscade Films)",Montr�al,Quebec,Canada,"La nuit est une sorci�re",French,"Science fiction/Fantasy/Tale",2022-12-07,30000.00,30000.00,Advance,"Development Program",0
2022-2023,P3,"9167-7286 Qu�bec inc.",Montr�al,Quebec,Canada,"La nuit noire m'a donn� des yeux noirs",French,Documentary,2022-10-20,245000.00,245000.00,Contribution,"Theatrical Documentary Program",0
2022-2023,P3,"9355-1752 Quebec inc.",Montr�al,Quebec,Canada,"La paix seulement",French,Documentary,2022-12-01,30000.00,30000.00,Advance,"Development Program",0
2022-2023,P3,"Filmoption International Inc.",Westmount,Quebec,Canada,"La Switch",French,Drama,2022-12-08,45162.00,45162.00,Advance,"Marketing Program",0
2022-2023,P3,"Transmar Films Inc.",Montr�al,Quebec,Canada,"Labrador ou L'anatomie du silence",French,Drama,2022-11-29,30000.00,30000.00,Advance,"Development Program",0
2022-2023,P3,"Concerto Films inc.",Montr�al,Quebec,Canada,LARRY,English,Documentary,2022-10-14,150000.00,150000.00,Contribution,"Theatrical Documentary Program",0
2022-2023,P3,"Wildling Pictures Inc.",Dundas,Ontario,Canada,"Laura Dean Keeps Breaking Up with Me",English,Drama,2022-10-27,30000.00,30000.00,Advance,"Development Program",0
2022-2023,P3,"Lyla Films Inc.",Montr�al,Quebec,Canada,"Le Chant de Georges Boivin",French,Comedy,2022-10-12,30000.00,30000.00,Advance,"Development Program",0
2022-2023,P3,"Microscope Inc.",Montr�al,Quebec,Canada,"Le fil du vivant",French,Drama,2022-12-12,20000.00,20000.00,Advance,"Development Program",0
2022-2023,P3,"Les productions du 4e mur inc.",Halifax,"Nova Scotia",Canada,"Le grand d�rangement de Danny Tremblay",French,Horror,2022-12-07,30000.00,30000.00,Advance,"Development Program",0
2022-2023,P3,"Voyelles Films inc.",Montr�al,Quebec,Canada,"LE MARABOUT",French,"Science fiction/Fantasy/Tale",2022-10-20,30000.00,30000.00,Advance,"Development Program",0
2022-2023,P3,"4Head Films Inc.",Winnipeg,Manitoba,Canada,"Le milieu",French,Drama,2022-11-29,30000.00,30000.00,Advance,"Development Program",0
2022-2023,P3,"Item 7 Inc.",Montr�al,Quebec,Canada,"Le sablier",French,Drama,2022-10-07,30000.00,30000.00,Advance,"Development Program",0
2022-2023,P3,"Attraction Images Productions XVI Inc.",Montr�al,Quebec,Canada,"Le temps d'un �t�",French,Comedy,2022-12-15,2100000.00,1900000.00,Advance,"Production Program","Amended Contract Signed 01-Feb-2022"
2022-2023,P3,"Productions Avenida inc.",Montr�al,Quebec,Canada,"Le Trou",French,Comedy,2022-11-25,26736.00,26736.00,Advance,"Development Program",0
2022-2023,P3,"�a Tourne Productions Ltee.",Caraquet,"New Brunswick",Canada,"LE TROU DU CUL DU MONDE",French,Comedy,2022-11-22,30000.00,30000.00,Advance,"Development Program",0
2022-2023,P3,"Productions 10e Ave Inc.",Saint-Augustin-de-Desmaures,Quebec,Canada,"Le vaisseau des temp�tes",French,"Science fiction/Fantasy/Tale",2022-10-04,25000.00,25000.00,Advance,"Development Program",0
2022-2023,P3,"Maison 4:3 Inc.",Montr�al,Quebec,Canada,"LES 12 TRAVAUX D'IMELDA",French,Comedy,2022-11-01,67057.00,67057.00,Advance,"Marketing Program",0
2022-2023,P3,"B�tes Lumineuses administration inc.",Montr�al,Quebec,Canada,"Les animaux du Zoo",French,"Science fiction/Fantasy/Tale",2022-11-10,30000.00,30000.00,Advance,"Development Program",0
2022-2023,P3,"Item 7 Inc.",Montr�al,Quebec,Canada,"Les bonbons qui sauvent la vie",French,Drama,2022-10-07,35000.00,35000.00,Advance,"Development Program",0
2022-2023,P3,"Babel Films inc.",Montr�al,Quebec,Canada,"Les g�ants du lac",French,Comedy,2022-10-27,30000.00,30000.00,Advance,"Development Program",0
2022-2023,P3,"Production les hommes de ma m�re inc.",Mont-Saint-Hilaire,Quebec,Canada,"LES HOMMES DE MA M�RE",French,Drama,2022-10-20,730000.00,730000.00,Investment,"Production Program",0
2022-2023,P3,"Association coop�rative de productions audio-visuelles",Montr�al,Quebec,Canada,"LES INCISIVES DU MOTONEIGISTE",French,Drama,2022-10-18,51000.00,51000.00,Advance,"Development Program",0
2022-2023,P3,"Productions Jours Heureux inc.",Montr�al,Quebec,Canada,"Les jours heureux",French,Drama,2022-12-20,1700000.00,1500000.00,Advance,"Production Program","Amended Contract Signed 18-Feb-2022"
2022-2023,P3,"701275 NB Lt�e",Moncton,"New Brunswick",Canada,"Les mains du monde",French,Documentary,2022-11-24,25000.00,25000.00,Advance,"Development Program",0
2022-2023,P3,"Vieille Am�rique Inc.",Montr�al,Quebec,Canada,"Les midinettes",French,"Historical Drama",2022-11-04,20000.00,20000.00,Advance,"Development Program",0
2022-2023,P3,"Faits Divers M�dia inc",Montr�al,Quebec,Canada,"LES MURS",French,Drama,2022-11-29,30000.00,30000.00,Advance,"Development Program",0
2022-2023,P3,"Cin�math�que Qu�b�coise",Montr�al,Quebec,Canada,"Les Sommets du cin�ma d'animation",0,0,2022-11-02,25000.00,25000.00,Contribution,"Promotion Program",0
2022-2023,P3,"Cardinal Pictures Inc.","East York",Ontario,Canada,"Let Me Help You",English,Thriller,2022-11-17,15000.00,15000.00,Advance,"Development Program",0
2022-2023,P3,"Association coop�rative de productions audio-visuelles",Montr�al,Quebec,Canada,"LETTRE � JADE",French,Thriller,2022-10-18,49000.00,49000.00,Advance,"Development Program",0
2022-2023,P3,"Saaren Films Inc.",Toronto,Ontario,Canada,"Lhasa: Belonging",English,Documentary,2022-12-15,29960.00,29960.00,Advance,"Development Program",0
2022-2023,P3,"Lisa Pictures Ltd.",Toronto,Ontario,Canada,"Life Is Brief",English,Drama,2022-12-09,30000.00,30000.00,Advance,"Development Program",0
2022-2023,P3,"Films S�ville Inc. (Les)",Montr�al,Quebec,Canada,"Lignes de fuite",French,Drama,2022-12-06,243501.00,243501.00,Advance,"Marketing Program",0
2022-2023,P3,"Les Productions du Moment Inc.","�le des Soeurs, Montr�al",Quebec,Canada,L'ombudsman,French,Drama,2022-10-07,30000.00,30000.00,Advance,"Development Program",0
2022-2023,P3,"Maison 4:3 Inc.",Montr�al,Quebec,Canada,"L'ORIGINE DU MAL",French,Thriller,2022-12-13,68508.00,68508.00,Advance,"Marketing Program",0
2022-2023,P3,"Productions Caramel Film Inc.",Montr�al,Quebec,Canada,"Lou Sur la Glace",French,Comedy,2022-10-27,50890.00,50890.00,Advance,"Development Program",0
2022-2023,P3,"Lost Time Media Inc.",Toronto,Ontario,Canada,"Love in the Time of Fentanyl",English,Documentary,2022-11-10,5000.00,5000.00,Contribution,"International Marketing Program",0
2022-2023,P3,"Sir Harry Films Inc.",Toronto,Ontario,Canada,"Lucky Stars",English,"Romantic Comedy",2022-11-02,20000.00,20000.00,Advance,"Development Program",0
2022-2023,P3,"Pitchblack Pictures Inc.",Burnaby,"British Columbia",Canada,"Lullabies for Little Criminals",English,Drama,2022-10-20,32952.00,32952.00,Advance,"Development Program",0
2022-2023,P3,"1207405 B.C. Ltd. dba Spitshine Flicks",Vancouver,"British Columbia",Canada,"Lupe Q and the Galactic Earworms",English,"Science fiction/Fantasy/Tale",2022-12-16,30000.00,30000.00,Advance,"Development Program",0
2022-2023,P3,"Purattu Film Production Inc.",Toronto,Ontario,Canada,"Madness and Honey Days",Other,Drama,2022-12-16,30000.00,30000.00,Advance,"Development Program",0
2022-2023,P3,"PUNK Films Inc.",Toronto,Ontario,Canada,Magenta,English,Drama,2022-10-17,30000.00,30000.00,Advance,"Development Program",0
2022-2023,P3,"Compy Films Inc.",Toronto,Ontario,Canada,Mandaragat,English,Horror,2022-12-09,30000.00,30000.00,Advance,"Development Program",0
2022-2023,P3,"Productions Avenida inc.",Montr�al,Quebec,Canada,"March� de coproduction - sans projet sp�cifique",French,Drama,2022-10-18,1550.00,1550.00,Contribution,"International Marketing Program",0
2022-2023,P3,"STUDIOS H264 INC.",Montr�al,Quebec,Canada,"March� de coproduction - sans projet sp�cifique",French,Drama,2022-10-12,1550.00,1550.00,Contribution,"International Marketing Program",0
2022-2023,P3,"A CONTRACORRIENTEFILMS, SL",BARCELONA,,Spain,"Maria Chapdelaine",French,"Historical Drama",2022-12-21,18000.00,18000.00,Contribution,"Export Assistance Program",0
2022-2023,P3,"The Calling Inc.",Toronto,Ontario,Canada,Marianne,French,Drama,2022-12-02,30000.00,30000.00,Advance,"Development Program",0
2022-2023,P3,"Devonshire Productions Inc.",Toronto,Ontario,Canada,Mary,English,Drama,2022-12-12,29700.00,29700.00,Advance,"Development Program",0
2022-2023,P3,"Attraction Images inc.",Montr�al,Quebec,Canada,Match,French,Drama,2022-12-13,35000.00,35000.00,Advance,"Development Program",0
2022-2023,P3,"Fit Of Pique Productions Ltd.",Toronto,Ontario,Canada,"Medicine and Magic",English,Documentary,2022-10-21,0.00,1500.00,Contribution,"International Marketing Program","Amended Contract Signed 05-Jan-2022"
2022-2023,P3,"Moi & Dave inc.",Toronto,Ontario,Canada,"Medium B�luga",French,Drama,2022-10-04,1550.00,1550.00,Contribution,"International Marketing Program",0
2022-2023,P3,"Moi & Dave inc.",Toronto,Ontario,Canada,"Medium B�luga",French,Drama,2022-11-29,30000.00,30000.00,Advance,"Development Program",0
2022-2023,P3,"Gobez Media Inc.",Toronto,Ontario,Canada,"Mehal Sefari",Other,"Historical Drama",2022-11-29,2000.00,2000.00,Contribution,"International Marketing Program",0
2022-2023,P3,"Miss Magic Productions Inc.",Toronto,Ontario,Canada,"Memories of Dreams",English,"Science fiction/Fantasy/Tale",2022-12-14,29892.00,29892.00,Advance,"Development Program",0
2022-2023,P3,"Microscope Inc.",Montr�al,Quebec,Canada,"MEMORY BOX",French,Drama,2022-12-22,35000.00,35000.00,Contribution,"International Marketing Program",0
2022-2023,P3,"AMF Productions Inc.",Vancouver,"British Columbia",Canada,"MICE MEN",English,Drama,2022-10-23,25000.00,25000.00,Advance,"Development Program",0
2022-2023,P3,"Vancouver Asian Film Festival Society",Vancouver,"British Columbia",Canada,"Mighty Asian Moviemaking Marathon 2023",0,0,2022-12-19,25000.00,25000.00,Contribution,"Promotion Program",0
2022-2023,P3,"Microscope Inc.",Montr�al,Quebec,Canada,"Mille secrets mille dangers (aka Apr�s)",French,Drama,2022-12-12,40000.00,40000.00,Advance,"Development Program",0
2022-2023,P3,"STUDIOS H264 INC.",Montr�al,Quebec,Canada,"Mistral Spatial",French,Comedy,2022-11-02,36684.00,36684.00,Advance,"Marketing Program",0
2022-2023,P3,"Second Wave Films Ltd.",Kingsburg,"Nova Scotia",Canada,"Monica's News",English,Drama,2022-12-21,445000.00,445000.00,Contribution,"Production Program",0
2022-2023,P3,"OBJECTIF 9 INC.",Montr�al,Quebec,Canada,"Montreal Girls",English,Drama,2022-10-25,2000.00,2000.00,Contribution,"International Marketing Program",0
2022-2023,P3,"WaldenPaint Studio Inc.",Yellowknife,"Northwest Territories",Canada,Mother,English,"Science fiction/Fantasy/Tale",2022-12-13,30000.00,30000.00,Advance,"Development Program",0
2022-2023,P3,"Compass Productions Inc.",Montreal,Quebec,Canada,"Mother Mary",English,Drama,2022-11-01,30000.00,30000.00,Advance,"Development Program",0
2022-2023,P3,"Maja Jacob Films Ltd.",Moncton,"New Brunswick",Canada,Motherland,English,Drama,2022-12-19,2000.00,2000.00,Contribution,"International Marketing Program",0
2022-2023,P3,"Lisa Pictures Ltd.",Toronto,Ontario,Canada,"MS Slavic 7",English,,2022-10-19,16792.37,23700.00,Contribution,"International Marketing Program","Amended Contract Signed 26-Feb-2019"
2022-2023,P3,"Mongrel Media Inc.",Toronto,Ontario,Canada,"My Salinger Year",English,Drama,2022-12-15,122696.00,193987.00,Advance,"Marketing Program","Amended Contract Signed 04-Mar-2021"
2022-2023,P3,"Rayon Verde Inc.",Toronto,Ontario,Canada,"My Two Voices (Mis dos voces)",Other,Documentary,2022-10-25,18657.55,25000.00,Contribution,"International Marketing Program","Amended Contract Signed 17-Nov-2021"
2022-2023,P3,"1000150716 ONTARIO INC.",Toronto,Ontario,Canada,"NADAAMAADIS: Red Power Rising",English,Documentary,2022-12-22,435688.00,435688.00,Contribution,"Theatrical Documentary Program",0
2022-2023,P3,"National Screen Institute - Canada",Winnipeg,Manitoba,Canada,"National Screen Institute - Canada training programs",0,0,2022-10-04,252450.00,252450.00,Contribution,"Promotion Program",0
2022-2023,P3,"Nechako Films Inc.",Vancouver,"British Columbia",Canada,Nechako,English,Documentary,2022-12-22,350000.00,350000.00,Investment,"Theatrical Documentary Program",0
2022-2023,P3,"Dear Hero Productions Inc.",Burnaby,"British Columbia",Canada,"New Diamond Restaurant",English,Horror,2022-12-17,30000.00,30000.00,Advance,"Development Program",0
2022-2023,P3,"Christal Films Productions Inc.",Montr�al,Quebec,Canada,Nicolet,French,Comedy,2022-12-07,35000.00,35000.00,Advance,"Development Program",0
2022-2023,P3,"Strange Animals (Copperheart) Productions Inc.",Toronto,Ontario,Canada,"Night of the Zoopocalypse",English,Comedy,2022-10-07,500000.00,150000.00,Advance,"Production Program","Amended Contract Signed 17-Mar-2021"
2022-2023,P3,"696276 NB Inc.",Fredericton,"New Brunswick",Canada,"'Night Son",English,Drama,2022-12-09,30000.00,30000.00,Advance,"Development Program",0
2022-2023,P3,"Collective Pictures Inc.",Toronto,Ontario,Canada,"No Exit",English,"Science fiction/Fantasy/Tale",2022-11-16,50000.00,50000.00,Advance,"Development Program",0
2022-2023,P3,"L'OEIL VIF (Faisant affaire sous le nom Les Films du 3 mars)",Montr�al,Quebec,Canada,"No Ordinary Man",English,Documentary,2022-10-04,29306.00,40000.00,Advance,"Marketing Program","Amended Contract Signed 23-Jul-2021"
2022-2023,P3,"SC Productions Inc.",Toronto,Ontario,Canada,"no specific project",English,Drama,2022-12-07,1500.00,1500.00,Contribution,"International Marketing Program",0
2022-2023,P3,"Catbird Productions 2 Inc / Les Productions Catbird 2 inc",Montreal,Quebec,Canada,NoLandia,Other,Documentary,2022-11-23,125000.00,125000.00,Contribution,"Theatrical Documentary Program",0
2022-2023,P3,"701275 NB Lt�e",Moncton,"New Brunswick",Canada,"NOTRE DAME DE MONCTON",French,Drama,2022-12-16,60000.00,60000.00,Advance,"Marketing Program",0
2022-2023,P3,"Productions l'unit� centrale inc.",Montr�al,Quebec,Canada,"Nuit de soleil",French,Drama,2022-11-21,60000.00,60000.00,Advance,"Development Program",0
2022-2023,P3,"Kassiwi M�dia Inc.",Montr�al,Quebec,Canada,Nutaui,French,Action/Adventure,2022-12-15,30000.00,30000.00,Advance,"Development Program",0
2022-2023,P3,"Productions Festives",Trois-Rivieres,Quebec,Canada,Oasis,French,Documentary,2022-10-20,2000.00,2000.00,Contribution,"International Marketing Program",0
2022-2023,P3,"Eagle Vision Inc.",Winnipeg,Manitoba,Canada,"Odd Numvers",English,"Romantic Comedy",2022-11-01,30000.00,30000.00,Advance,"Development Program",0
2022-2023,P3,"Picture Plant Limited",Kingsburg,"Nova Scotia",Canada,"OLLIE AND WILL",English,Drama,2022-12-06,30000.00,30000.00,Advance,"Development Program",0
2022-2023,P3,"Aimer Films Inc.","New Westminster","British Columbia",Canada,"On the Wings of Sorrow",English,Drama,2022-12-12,30000.00,30000.00,Advance,"Development Program",0
2022-2023,P3,"Prairie Cat Productions Inc.",Regina,Saskatchewan,Canada,"One Perfect Date",English,Comedy,2022-12-02,20165.00,20165.00,Advance,"Development Program",0
2022-2023,P3,"Productions Caramel Film Inc.",Montr�al,Quebec,Canada,"Op�ration Sandbox",French,Comedy,2022-10-27,32856.00,32856.00,Advance,"Development Program",0
2022-2023,P3,"AMF Productions Inc.",Vancouver,"British Columbia",Canada,ORCA,English,"Science fiction/Fantasy/Tale",2022-10-23,35000.00,35000.00,Advance,"Development Program",0
2022-2023,P3,"1976 Productions Inc.",Montr�al,Quebec,Canada,"Oublier Charlotte",French,Mystery/Crime/Police,2022-11-18,725000.00,725000.00,Advance,"Production Program",0
2022-2023,P3,"G.P.A. Films Inc.",Longueuil,Quebec,Canada,"Out Standing in the Field",English,Drama,2022-11-09,200000.00,200000.00,Advance,"Production Program",0
2022-2023,P3,"Island Media Arts Co-Operative Limited",Charlottetown,"Prince Edward Island",Canada,"PEI Screenwriters' Bootcamp 2023",0,0,2022-12-01,15000.00,15000.00,Contribution,"Promotion Program",0
2022-2023,P3,"Productions du milieu inc",Moncton,"New Brunswick",Canada,"Pense � moi",French,Drama,2022-11-25,30000.00,30000.00,Advance,"Development Program",0
2022-2023,P3,"Rebel Road Films Inc.",Halifax,"Nova Scotia",Canada,Perennials,English,Horror,2022-12-07,25000.00,25000.00,Advance,"Development Program",0
2022-2023,P3,"CUT/OFF/TAIL Pictures Inc.","West Pennant","Nova Scotia",Canada,"Permanent Damage",English,Thriller,2022-12-23,45000.00,45000.00,Advance,"Development Program",0
2022-2023,P3,"Productions Miraculum Inc.",Montr�al,Quebec,Canada,"Petit J�sus",French,Comedy,2022-11-29,250000.00,250000.00,Investment,"Production Program",0
2022-2023,P3,"Newfoundland Independent Filmmakers Co-Operative","St. John's",Newfoundland/Labrador,Canada,"Picture Start",0,0,2022-11-18,44000.00,44000.00,Contribution,"Promotion Program",0
2022-2023,P3,"Nava Projects Inc.",Dartmouth,"Nova Scotia",Canada,"Pigeon Wars",English,Drama,2022-12-13,30000.00,30000.00,Advance,"Development Program",0
2022-2023,P3,"3 Legged Dog Films Ltd.",Toronto,Ontario,Canada,PIVOT,English,"Science fiction/Fantasy/Tale",2022-10-07,30000.00,30000.00,Advance,"Development Program",0
2022-2023,P3,"Productions KOTV VII Inc.",Montr�al,Quebec,Canada,"Plan B Saison 4 Fonds d'indemnisation � court terme  Productions KOTV VII Inc.",0,0,2022-11-07,404976.38,0.00,Contribution,"COVID-19 Emergency Relief Fund","Amended Contract Signed 08-Mar-2022"
2022-2023,P3,"CUT/OFF/TAIL Pictures Inc.","West Pennant","Nova Scotia",Canada,"Port Hood",English,Horror,2022-12-23,15000.00,15000.00,Advance,"Development Program",0
2022-2023,P3,"612675 NB Inc.",Dieppe,"New Brunswick",Canada,"Pour l'amour de Dieu",French,Comedy,2022-11-22,15000.00,15000.00,Advance,"Development Program",0
2022-2023,P3,"Echo Media Inc.",Montr�al,Quebec,Canada,"Pour le pire",French,Comedy,2022-11-04,45000.00,45000.00,Advance,"Development Program",0
2022-2023,P3,"OCM Pow Wow Films Inc.",Saanichton,"British Columbia",Canada,"Pow Wow Summer",English,"Romantic Comedy",2022-12-16,543981.00,543981.00,Investment,"Production Program",0
2022-2023,P3,"Acad�mie canadienne du cin�ma et de la t�l�vision - Section Qu�bec",Montr�al,Quebec,Canada,"Prix �crans canadiens",0,0,2022-12-19,10000.00,10000.00,Contribution,"Promotion Program",0
2022-2023,P3,"Femmes du cinema, de la television et des m�dias num�riques",Montr�al,Quebec,Canada,"Programmation annuelle et Gala Allia (FCTMN)",0,0,2022-12-13,10000.00,10000.00,Contribution,"Promotion Program",0
2022-2023,P3,"2416-1200 Qu�bec Inc",Val-d'Or,Quebec,Canada,"Programme d'aide � la diffusion en salle  2416-1200 Qu�bec Inc",0,0,2022-12-16,50000.00,50000.00,Contribution,"Theatrical Exhibition Program",0
2022-2023,P3,"2754-5383 Qu�bec Inc (Cin�ma Alouette)",Saint-Raymond,Quebec,Canada,"Programme d'aide � la diffusion en salle  2754-5383 Qu�bec Inc (Cin�ma Alouette)",0,0,2022-12-14,50000.00,50000.00,Contribution,"Theatrical Exhibition Program",0
2022-2023,P3,"2973-8648 Quebec inc.",joliette,Quebec,Canada,"Programme d'aide � la diffusion en salle  2973-8648 Quebec inc.",0,0,2022-12-14,300000.00,300000.00,Contribution,"Theatrical Exhibition Program",0
2022-2023,P3,"4417194 Canada Inc. o/s Cinema St-Eustache",St-Eustache,Quebec,Canada,"Programme d'aide � la diffusion en salle  4417194 Canada Inc. o/s Cinema St-Eustache",0,0,2022-12-21,100000.00,100000.00,Contribution,"Theatrical Exhibition Program",0
2022-2023,P3,"9001-5967 Qu�bec Inc.",Matane,Quebec,Canada,"Programme d'aide � la diffusion en salle  9001-5967 Qu�bec Inc.",0,0,2022-12-14,50000.00,50000.00,Contribution,"Theatrical Exhibition Program",0
2022-2023,P3,"9034-7097 QC Inc.",Rouyn-Noranda,Quebec,Canada,"Programme d'aide � la diffusion en salle  9034-7097 QC Inc.",0,0,2022-12-15,50000.00,50000.00,Contribution,"Theatrical Exhibition Program",0
2022-2023,P3,"9042-1330 Quebec Inc.",Amos,Quebec,Canada,"Programme d'aide � la diffusion en salle  9042-1330 Quebec Inc.",0,0,2022-12-15,50000.00,50000.00,Contribution,"Theatrical Exhibition Program",0
2022-2023,P3,"9063-5186 Qu�bec Inc. (Cin�ma Laurier)",mont-laurier,Quebec,Canada,"Programme d'aide � la diffusion en salle  9063-5186 Qu�bec Inc. (Cin�ma Laurier)",0,0,2022-12-14,50000.00,50000.00,Contribution,"Theatrical Exhibition Program",0
2022-2023,P3,"9137-1484 Qu�bec inc. (Post-Moderne)",Montreal,Quebec,Canada,"Programme d'aide � la diffusion en salle  9137-1484 Qu�bec inc. (Post-Moderne)",0,0,2022-12-16,50000.00,50000.00,Contribution,"Theatrical Exhibition Program",0
2022-2023,P3,"9166-7972 Qu�bec inc.",ROBERVAL,Quebec,Canada,"Programme d'aide � la diffusion en salle  9166-7972 Qu�bec inc.",0,0,2022-12-13,100000.00,100000.00,Contribution,"Theatrical Exhibition Program",0
2022-2023,P3,"9230-2058 Qu�bec Inc.",Sherbrooke,Quebec,Canada,"Programme d'aide � la diffusion en salle  9230-2058 Qu�bec Inc.",0,0,2022-12-16,100000.00,100000.00,Contribution,"Theatrical Exhibition Program",0
2022-2023,P3,"Azur Divertissements Inc",Cowansville,Quebec,Canada,"Programme d'aide � la diffusion en salle  Azur Divertissements Inc",0,0,2022-12-13,200000.00,200000.00,Contribution,"Theatrical Exhibition Program",0
2022-2023,P3,"Centre Culturel de Caraquet Inc. o/s Cin�ma du Centre",Caraquet,"New Brunswick",Canada,"Programme d'aide � la diffusion en salle  Centre Culturel de Caraquet Inc. o/s Cin�ma du Centre",0,0,2022-12-19,50000.00,50000.00,Contribution,"Theatrical Exhibition Program",0
2022-2023,P3,"Centre de Conservation de la Biodiversit� Bor�ale (CCBB) Inc. o/s Zoo Sauvage de Saint-F�licien",Saint-F�licien,Quebec,Canada,"Programme d'aide � la diffusion en salle  Centre de Conservation de la Biodiversit� Bor�ale (CCBB) Inc. o/s Zoo Sauvage de Saint-F�licien",0,0,2022-12-15,50000.00,50000.00,Contribution,"Theatrical Exhibition Program",0
2022-2023,P3,"CINE-CENTRE VIDEO INC.",Qu�bec,Quebec,Canada,"Programme d'aide � la diffusion en salle  CINE-CENTRE VIDEO INC.",0,0,2022-12-22,100000.00,100000.00,Contribution,"Theatrical Exhibition Program",0
2022-2023,P3,"CIN�MA BIERMANS INC.",Shawinigan,Quebec,Canada,"Programme d'aide � la diffusion en salle  CIN�MA BIERMANS INC.",0,0,2022-12-21,50000.00,50000.00,Contribution,"Theatrical Exhibition Program",0
2022-2023,P3,"Cin�ma centre-ville inc.",Saint-Georges,Quebec,Canada,"Programme d'aide � la diffusion en salle  Cin�ma centre-ville inc.",0,0,2022-12-15,50000.00,50000.00,Contribution,"Theatrical Exhibition Program",0
2022-2023,P3,"Cin�ma Le Clap PSF inc.",Qu�bec,Quebec,Canada,"Programme d'aide � la diffusion en salle  Cin�ma Le Clap PSF inc.",0,0,2022-12-16,100000.00,100000.00,Contribution,"Theatrical Exhibition Program",0
2022-2023,P3,"Cin�ma le Tapis Rouge Inc.",Trois-Rivi�res,Quebec,Canada,"Programme d'aide � la diffusion en salle  Cin�ma le Tapis Rouge Inc.",0,0,2022-12-15,50000.00,50000.00,Contribution,"Theatrical Exhibition Program",0
2022-2023,P3,"Cinema Louise inc",St-Pac�me,Quebec,Canada,"Programme d'aide � la diffusion en salle  Cinema Louise inc",0,0,2022-12-15,50000.00,50000.00,Contribution,"Theatrical Exhibition Program",0
2022-2023,P3,"Cinema Megantic",FRONTENAC,Quebec,Canada,"Programme d'aide � la diffusion en salle  Cinema Megantic",0,0,2022-12-15,50000.00,50000.00,Contribution,"Theatrical Exhibition Program",0
2022-2023,P3,"Cinema Pine Inc",Sainte-Ad�le,Quebec,Canada,"Programme d'aide � la diffusion en salle  Cinema Pine Inc",0,0,2022-12-14,100000.00,100000.00,Contribution,"Theatrical Exhibition Program",0
2022-2023,P3,"Cin�ma Public",Montr�al,Quebec,Canada,"Programme d'aide � la diffusion en salle  Cin�ma Public",0,0,2022-12-14,50000.00,50000.00,Contribution,"Theatrical Exhibition Program",0
2022-2023,P3,"Cinemas Princesse Inc.","Riviere du Loup",Quebec,Canada,"Programme d'aide � la diffusion en salle  Cinemas Princesse Inc.",0,0,2022-12-15,50000.00,50000.00,Contribution,"Theatrical Exhibition Program",0
2022-2023,P3,"Cin�-Quilles D.L. inc.","LA MALBAIE",Quebec,Canada,"Programme d'aide � la diffusion en salle  Cin�-Quilles D.L. inc.",0,0,2022-12-13,50000.00,50000.00,Contribution,"Theatrical Exhibition Program",0
2022-2023,P3,"Coop�rative de solidarit� socioculturelle de la Matap�dia",Amqui,Quebec,Canada,"Programme d'aide � la diffusion en salle  Coop�rative de solidarit� socioculturelle de la Matap�dia",0,0,2022-12-16,50000.00,50000.00,Contribution,"Theatrical Exhibition Program",0
2022-2023,P3,"Corporation Augustin-Ch�nier Inc. (Cin�ma du Rift)",Ville-Marie,Quebec,Canada,"Programme d'aide � la diffusion en salle  Corporation Augustin-Ch�nier Inc. (Cin�ma du Rift)",0,0,2022-12-16,50000.00,50000.00,Contribution,"Theatrical Exhibition Program",0
2022-2023,P3,"Corporation du Cin�ma Beaubien",Montr�al,Quebec,Canada,"Programme d'aide � la diffusion en salle  Corporation du Cin�ma Beaubien",0,0,2022-12-14,50000.00,50000.00,Contribution,"Theatrical Exhibition Program",0
2022-2023,P3,"Corporation du Cin�ma du Mus�e",Montr�al,Quebec,Canada,"Programme d'aide � la diffusion en salle  Corporation du Cin�ma du Mus�e",0,0,2022-12-14,50000.00,50000.00,Contribution,"Theatrical Exhibition Program",0
2022-2023,P3,"Corporation du Cin�ma du Parc",Montr�al,Quebec,Canada,"Programme d'aide � la diffusion en salle  Corporation du Cin�ma du Parc",0,0,2022-12-14,50000.00,50000.00,Contribution,"Theatrical Exhibition Program",0
2022-2023,P3,"Corporation du cin�ma Station Vu",Montr�al,Quebec,Canada,"Programme d'aide � la diffusion en salle  Corporation du cin�ma Station Vu",0,0,2022-12-22,50000.00,50000.00,Contribution,"Theatrical Exhibition Program",0
2022-2023,P3,"Filmo Vision Lt�e",L�vis,Quebec,Canada,"Programme d'aide � la diffusion en salle  Filmo Vision Lt�e",0,0,2022-12-13,100000.00,100000.00,Contribution,"Theatrical Exhibition Program",0
2022-2023,P3,"Les Arts de la sc�ne de Montmagny",Montmagny,Quebec,Canada,"Programme d'aide � la diffusion en salle  Les Arts de la sc�ne de Montmagny",0,0,2022-12-19,50000.00,50000.00,Contribution,"Theatrical Exhibition Program",0
2022-2023,P3,"Les Cin�mas Cin� Entreprise inc",Terrebonne,Quebec,Canada,"Programme d'aide � la diffusion en salle  Les Cin�mas Cin� Entreprise inc",0,0,2022-12-15,300000.00,300000.00,Contribution,"Theatrical Exhibition Program",0
2022-2023,P3,"Les Cin�mas Zenith Lt�e",Montreal,Quebec,Canada,"Programme d'aide � la diffusion en salle  Les Cin�mas Zenith Lt�e",0,0,2022-12-22,50000.00,50000.00,Contribution,"Theatrical Exhibition Program",0
2022-2023,P3,"Les Placements CGD Inc.",Alma,Quebec,Canada,"Programme d'aide � la diffusion en salle  Les Placements CGD Inc.",0,0,2022-12-15,50000.00,50000.00,Contribution,"Theatrical Exhibition Program",0
2022-2023,P3,"Ville de D�gelis",D�gelis,Quebec,Canada,"Programme d'aide � la diffusion en salle  Ville de D�gelis",0,0,2022-12-15,50000.00,50000.00,Contribution,"Theatrical Exhibition Program",0
2022-2023,P3,"YUPPIE FILMS INC.",Valleyfield,Quebec,Canada,"Programme d'aide � la diffusion en salle  YUPPIE FILMS INC.",0,0,2022-12-20,50000.00,50000.00,Contribution,"Theatrical Exhibition Program",0
2022-2023,P3,"Honalee Productions Inc.",Vancouver,"British Columbia",Canada,Pyramiden,English,Horror,2022-11-18,32200.00,32200.00,Advance,"Development Program",0
2022-2023,P3,"Sahkosh Productions Inc.",Toronto,Ontario,Canada,"Quand la musique vagabonde",French,Drama,2022-12-09,30000.00,30000.00,Advance,"Development Program",0
2022-2023,P3,"OBJECTIF 9 INC.",Montr�al,Quebec,Canada,"Qu�b�cois de Souk",French,Comedy,2022-10-18,0.00,18000.00,Advance,"Development Program","Amended Contract Signed 20-Jan-2021"
2022-2023,P3,"Storyline Entertainment Inc.",Toronto,Ontario,Canada,"Queen of the Deuce",English,Documentary,2022-10-11,4800.00,4800.00,Contribution,"International Marketing Program",0
2022-2023,P3,"Hi-Vis Film Inc.","Cape North","Nova Scotia",Canada,"Queens of the Qing Dynasty",English,Drama,2022-10-19,2000.00,2000.00,Contribution,"International Marketing Program",0
2022-2023,P3,"Devout Productions Ltd.",Victoria,"British Columbia",Canada,Raya,English,Drama,2022-12-02,0.00,15000.00,Advance,"Development Program","Amended Contract Signed 01-Feb-2021"
2022-2023,P3,"Re Uniting Productions Inc","Port CoQuitlam","British Columbia",Canada,"Re: Uniting",English,Drama,2022-11-30,83409.98,83409.98,Contribution,"Production Program",0
2022-2023,P3,"The Kolasky Company Inc.",Toronto,Ontario,Canada,"Really Fun Person",English,Comedy,2022-10-18,17045.00,17045.00,Advance,"Development Program",0
2022-2023,P3,"Elevation Pictures Productions Corp.",Toronto,Ontario,Canada,"Red Card",English,Thriller,2022-12-15,60000.00,60000.00,Advance,"Development Program",0
2022-2023,P3,"Fondation Qu�bec cin�ma",Montr�al,Quebec,Canada,"Rendez-vous Qu�bec Cin�ma + Rendez-vous Pro",0,0,2022-11-15,272113.00,272113.00,Contribution,"Promotion Program",0
2022-2023,P3,"Cayenne M�dias Inc.",Wendake,Quebec,Canada,R�silience,French,Documentary,2022-12-06,30000.00,30000.00,Advance,"Development Program",0
2022-2023,P3,"OBJECTIF 9 INC.",Montr�al,Quebec,Canada,"Retour au bled",French,Comedy,2022-10-18,18000.00,0.00,Advance,"Development Program","Amended Contract Signed 20-Jan-2021"
2022-2023,P3,"FilmLoft Media Inc.",Aurora,Ontario,Canada,RETREAT,English,Drama,2022-12-16,30000.00,30000.00,Advance,"Development Program",0
2022-2023,P3,"Microclimat Films inc.",Sutton,Quebec,Canada,Retrouvailles,French,Drama,2022-11-22,30000.00,30000.00,Advance,"Development Program",0
2022-2023,P3,"Aquatinter Films Ltd.",Vancouver,"British Columbia",Canada,Reunion,English,Drama,2022-12-11,30000.00,30000.00,Advance,"Development Program",0
2022-2023,P3,"GAME THEORY FILMS INC.",Toronto,Ontario,Canada,"Riceboy Sleeps",English,Drama,2022-11-07,40971.00,40971.00,Advance,"Marketing Program",0
2022-2023,P3,"Sph�re Films International inc.",Montr�al,Quebec,Canada,"Riceboy Sleeps",English,Drama,2022-11-21,2000.00,2000.00,Contribution,"International Marketing Program",0
2022-2023,P3,"SPH�RE M�DIA DISTRIBUTION INC.",Montr�al,Quebec,Canada,"Riceboy Sleeps",English,Drama,2022-11-02,10000.00,10000.00,Contribution,"International Marketing Program",0
2022-2023,P3,"Eye Steel Film Inc.",Montr�al,Quebec,Canada,Rivoire,English,Documentary,2022-12-09,30000.00,30000.00,Advance,"Development Program",0
2022-2023,P3,"LTS Film Inc.",Toronto,Ontario,Canada,"Rosa Fights Back",English,Drama,2022-12-21,30000.00,30000.00,Advance,"Development Program",0
2022-2023,P3,"Photon Films and Media Inc.",Toronto,Ontario,Canada,Rosie,English,Drama,2022-12-09,31226.25,31226.25,Advance,"Marketing Program",0
2022-2023,P3,"Amalga Cr�ations Films 2 inc.",Montr�al,Quebec,Canada,"RU Fonds d'indemnisation � court terme 2022-2023  Amalga Cr�ations Films 2 inc.",0,0,2022-10-13,111487.02,0.00,Contribution,"COVID-19 Emergency Relief Fund","Amended Contract Signed 22-Mar-2022"
2022-2023,P3,"Buffalo Gal Pictures Inc.",Winnipeg,Manitoba,Canada,Rumours,English,Comedy,2022-11-23,30000.00,30000.00,Advance,"Development Program",0
2022-2023,P3,"RAJA PICTURES INC.",Toronto,Ontario,Canada,"Russians at War",Other,Documentary,2022-11-03,2000.00,2000.00,Contribution,"International Marketing Program",0
2022-2023,P3,"9360-1953 Qu�bec inc.",Montreal,Quebec,Canada,"Saber 7",English,Documentary,2022-10-03,60000.00,60000.00,Advance,"Development Program",0
2022-2023,P3,"My Sister Miriam Films Inc.",Vancouver,"British Columbia",Canada,"Sacred Creatures",English,Drama,2022-12-22,600000.00,600000.00,Investment,"Production Program",0
2022-2023,P3,"Cin�sam Inc.",Montr�al,Quebec,Canada,SAM,French,Drama,2022-10-31,799149.00,660000.00,Advance,"Production Program","Amended Contract Signed 02-Oct-2019"
2022-2023,P3,"Agathe Productions Inc.",Montr�al,Quebec,Canada,Sampo,English,Drama,2022-12-15,18500.00,18500.00,Advance,"Development Program",0
2022-2023,P3,"Microscope Inc.",Montr�al,Quebec,Canada,"Sans fond",French,Drama,2022-12-12,20000.00,20000.00,Advance,"Development Program",0
2022-2023,P3,"Couzin Films Inc.",Montr�al,Quebec,Canada,Sapins,French,Comedy,2022-11-16,1550.00,1550.00,Contribution,"International Marketing Program",0
2022-2023,P3,"Production Sharlene inc.",Montr�al,Quebec,Canada,Sapins,French,Comedy,2022-11-09,1225000.00,1225000.00,Investment,"Production Program",0
2022-2023,P3,"Iylond Entertainment Inc.",Okotoks,Alberta,Canada,"Savage Hell of the Black Moon",English,Action/Adventure,2022-12-15,30000.00,30000.00,Advance,"Development Program",0
2022-2023,P3,"Darius Films Inc.",Toronto,Ontario,Canada,"Save the Dates",English,"Romantic Comedy",2022-11-28,37000.00,37000.00,Advance,"Development Program",0
2022-2023,P3,"Jill and Jackfish Productions Inc.",Yellowknife,"Northwest Territories",Canada,Scammers,English,Drama,2022-11-02,60000.00,60000.00,Advance,"Development Program",0
2022-2023,P3,"6909060 Canada Inc.",Montr�al,Quebec,Canada,Scorpia,English,"Science fiction/Fantasy/Tale",2022-12-07,30000.00,30000.00,Advance,"Development Program",0
2022-2023,P3,"Metafilms Inc.",Montr�al,Quebec,Canada,"Scoundrels of 1870",English,"Historical Drama",2022-11-10,75000.00,75000.00,Advance,"Development Program",0
2022-2023,P3,"Raven Banner Releasing Inc.",Toronto,Ontario,Canada,Scrap,English,Documentary,2022-10-27,38115.00,38115.00,Advance,"Marketing Program",0
2022-2023,P3,"Level Film Inc.",Toronto,Ontario,Canada,"See For Me",English,Thriller,2022-11-02,31112.00,45540.00,Advance,"Marketing Program","Amended Contract Signed 26-Jul-2021"
2022-2023,P3,"1375849 B.C. LTD.",Burnaby,"British Columbia",Canada,"Send the Rain",English,Drama,2022-12-15,30000.00,30000.00,Advance,"Development Program",0
2022-2023,P3,"Rink Rat Productions Inc.","St. John's",Newfoundland/Labrador,Canada,"Seven Proven Methods",English,Comedy,2022-12-13,20000.00,20000.00,Advance,"Development Program",0
2022-2023,P3,"Alcina Pictures Ltd.",Toronto,Ontario,Canada,"Sharp Corner",English,Thriller,2022-12-19,181588.00,181588.00,Advance,"Production Program",0
2022-2023,P3,"N�m�sis Films Inc.",Montr�al,Quebec,Canada,Shower,French,Thriller,2022-11-07,30000.00,30000.00,Advance,"Development Program",0
2022-2023,P3,"9472-3558 Qu�bec inc.",Montr�al,Quebec,Canada,"Simple comme Sylvain",French,"Romantic Comedy",2022-12-02,1419988.00,1419988.00,Investment,"Production Program",0
2022-2023,P3,"9472-3558 Qu�bec inc.",Montr�al,Quebec,Canada,"Simple comme Sylvain",French,"Romantic Comedy",2022-11-10,405012.00,405012.00,Advance,"Production Program",0
2022-2023,P3,"9472-3558 Qu�bec inc.",Montr�al,Quebec,Canada,"Simple comme Sylvain",French,"Romantic Comedy",2022-12-06,0.00,405012.00,Advance,"Production Program","Amended Contract Signed 10-Nov-2022"
2022-2023,P3,"9472-3558 Qu�bec inc.",Montr�al,Quebec,Canada,"Simple comme Sylvain",French,"Romantic Comedy",2022-12-06,405012.00,405012.00,Investment,"Production Program","Amended Contract Signed 10-Nov-2022"
2022-2023,P3,"3 Legged Dog Films Ltd.",Toronto,Ontario,Canada,"Sisters at the End",English,Thriller,2022-10-07,30000.00,30000.00,Advance,"Development Program",0
2022-2023,P3,"Antarctica Productions Inc.",Burnaby,"British Columbia",Canada,"Sit Stay Love Short-Term Compensation Fund  Antarctica Productions Inc.",0,0,2022-11-04,50820.87,0.00,Contribution,"COVID-19 Emergency Relief Fund","Amended Contract Signed 22-Apr-2021"
2022-2023,P3,"Mixtape SB Productions Inc.",Toronto,Ontario,Canada,Slash/Back,English,"Science fiction/Fantasy/Tale",2022-10-18,2000.00,2000.00,Contribution,"International Marketing Program",0
2022-2023,P3,"Shaftesbury Slasher V Inc.",Toronto,Ontario,Canada,"Slasher - Season 5: Ripper Short-Term Compensation Fund 2022-2023  Shaftesbury Slasher V Inc.",0,0,2022-11-15,265078.53,0.00,Contribution,"COVID-19 Emergency Relief Fund","Amended Contract Signed 29-Mar-2022"
2022-2023,P3,"9323-2007 Qu�bec Inc.",Montr�al,Quebec,Canada,"Smiling moon",French,Drama,2022-12-06,60000.00,60000.00,Advance,"Development Program",0
2022-2023,P3,"Smoke & Gifts Productions Inc.",Toronto,Ontario,Canada,"Smoke & Gifts / It's All Gonna Break",English,Documentary,2022-12-05,200000.00,200000.00,Investment,"Theatrical Documentary Program",0
2022-2023,P3,"Rayon Verde Inc.",Toronto,Ontario,Canada,"So Much Tenderness",English,Drama,2022-10-13,5000.00,5000.00,Contribution,"International Marketing Program",0
2022-2023,P3,"Service Street Pictures Inc.",Vancouver,"British Columbia",Canada,Sohbat,English,Drama,2022-12-14,25000.00,25000.00,Advance,"Development Program",0
2022-2023,P3,"Entract Studios Inc.",Montr�al,Quebec,Canada,Soleil,French,Drama,2022-11-30,30000.00,30000.00,Advance,"Development Program",0
2022-2023,P3,"Productions C�leste inc.",Verdun,Quebec,Canada,"Space Cadet",English,Musical,2022-11-23,1870000.00,1870000.00,Advance,"Production Program",0
2022-2023,P3,"New Real Films Inc.",Toronto,Ontario,Canada,"Spencer and Jesse",English,Comedy,2022-11-04,20000.00,20000.00,Advance,"Development Program",0
2022-2023,P3,"Level Film Inc.",Toronto,Ontario,Canada,Stanleyville,English,Comedy,2022-10-26,30060.00,30060.00,Advance,"Marketing Program",0
2022-2023,P3,"White Pine Pictures Inc.",Toronto,Ontario,Canada,"Starfighter Baby",English,Documentary,2022-11-04,30000.00,30000.00,Advance,"Development Program",0
2022-2023,P3,"Still Standing 8 Productions Manitoba Inc.",Winnipeg,Manitoba,Canada,"Still Standing, Season 8 Short-Term Compensation Fund 2022-2023  Still Standing 8 Productions Manitoba Inc.",0,0,2022-12-22,30196.54,0.00,Contribution,"COVID-19 Emergency Relief Fund","Amended Contract Signed 30-Jun-2022"
2022-2023,P3,"Rodeo Queen Pictures Inc.",Vancouver,"British Columbia",Canada,Stock,English,"Historical Drama",2022-12-09,29000.00,29000.00,Advance,"Development Program",0
2022-2023,P3,"Aircraft Pictures Limited",Toronto,Ontario,Canada,"Stolen Warriors",English,Drama,2022-11-22,30000.00,30000.00,Advance,"Development Program",0
2022-2023,P3,"Stoney Film Project Ltd.",Calgary,Alberta,Canada,"Stoney Nakoda Film Project",English,Documentary,2022-11-14,175000.00,175000.00,Investment,"Theatrical Documentary Program",0
2022-2023,P3,"art et essai inc.",Montr�al,Quebec,Canada,Superluminal,English,Comedy,2022-12-19,2000.00,2000.00,Contribution,"International Marketing Program",0
2022-2023,P3,"Les mains sales Films Inc.",Verdun,Quebec,Canada,"Sur la plage de Verdun",French,Mystery/Crime/Police,2022-11-25,30000.00,30000.00,Advance,"Development Program",0
2022-2023,P3,"Microscope Inc.",Montr�al,Quebec,Canada,Suzanne,French,Drama,2022-10-26,25519.00,61000.00,Advance,"Development Program","Amended Contract Signed 20-Feb-2015"
2022-2023,P3,"Ugly Duckling Media Inc.",Toronto,Ontario,Canada,"Swan Song",English,Documentary,2022-12-09,175000.00,175000.00,Investment,"Theatrical Documentary Program",0
2022-2023,P3,"SAB Films Inc.","St. John's",Newfoundland/Labrador,Canada,"Sweet Angel Baby",English,Drama,2022-12-20,500000.00,500000.00,Investment,"Production Program",0
2022-2023,P3,"Federgreen Entertainment Inc.",Toronto,Ontario,Canada,"Take It Easy, Charlie",English,Drama,2022-11-04,21000.00,21000.00,Advance,"Development Program",0
2022-2023,P3,"LMDP Co. Inc.",Montreal,Quebec,Canada,Tartupaluk,English,"Science fiction/Fantasy/Tale",2022-11-01,2000.00,2000.00,Contribution,"International Marketing Program",0
2022-2023,P3,"Les Films Opale Inc.",Montr�al,Quebec,Canada,Temp�te,French,Drama,2022-12-05,129258.00,129258.00,Advance,"Marketing Program",0
2022-2023,P3,"GAME THEORY FILMS INC.",Toronto,Ontario,Canada,TENZIN,English,Drama,2022-11-23,20643.00,20643.00,Advance,"Marketing Program",0
2022-2023,P3,"Euclid 431 Pictures Inc.",Thornbury,Ontario,Canada,"The Beginning",English,"Science fiction/Fantasy/Tale",2022-11-21,60000.00,60000.00,Advance,"Development Program",0
2022-2023,P3,"Boy in the Woods Film Inc.",Toronto,Ontario,Canada,"The Boy in The Woods",English,"Historical Drama",2022-10-12,1025000.00,1025000.00,Investment,"Production Program",0
2022-2023,P3,"Blue Lake Films Ltd.",Victoria,"British Columbia",Canada,"The Bryce Lee Story",English,Comedy,2022-12-20,20000.00,20000.00,Advance,"Development Program",0
2022-2023,P3,"WTSF Films Inc.",Vancouver,"British Columbia",Canada,"The Clean-Up Crew",English,Drama,2022-12-12,30000.00,30000.00,Advance,"Development Program",0
2022-2023,P3,"A71 Entertainment Inc.",Toronto,Ontario,Canada,"The Curse of Audrey Earnshaw (aka Ballad of Audrey Earnshaw)",English,Horror,2022-11-30,80649.00,92880.00,Advance,"Marketing Program","Amended Contract Signed 08-Oct-2020"
2022-2023,P3,"9164-6828 Qu�bec Inc. (d/b/a Productions Loaded Pictures)",Montreal,Quebec,Canada,"The Delivery Line",English,Documentary,2022-10-03,4000.00,4000.00,Contribution,"International Marketing Program",0
2022-2023,P3,"Cineast Screen Development Limited",Halifax,"Nova Scotia",Canada,"The Doula",English,Thriller,2022-10-12,30000.00,30000.00,Advance,"Development Program",0
2022-2023,P3,"Independent Edge Films Inc.",Vancouver,"British Columbia",Canada,"The Driver",English,Horror,2022-11-10,44793.00,44793.00,Advance,"Development Program",0
2022-2023,P3,"Woods Entertainment Canada Inc.",Toronto,Ontario,Canada,"The Embers and the Stars",English,Thriller,2022-10-13,100000.00,100000.00,Advance,"Development Program",0
2022-2023,P3,"Defar Media Inc.",Toronto,Ontario,Canada,"THE FLY THAT DOESN'T LISTEN FOLLOWS THE CORPSE INTO THE GRAVE",English,Horror,2022-12-22,18000.00,18000.00,Advance,"Development Program",0
2022-2023,P3,"14217233 CANADA INC.",Montr�al,Quebec,Canada,"The G",English,Thriller,2022-10-19,700000.00,500000.00,Contribution,"Production Program","Amended Contract Signed 05-Mar-2020"
2022-2023,P3,"KRH film Inc.",Montr�al,Quebec,Canada,"The King's Deer",English,"Science fiction/Fantasy/Tale",2022-12-12,25000.00,25000.00,Advance,"Development Program",0
2022-2023,P3,"ONCE UPON A WHALE INC.",Montr�al,Quebec,Canada,"The Last Whale Singer",English,Action/Adventure,2022-12-20,365000.00,365000.00,Advance,"Production Program",0
2022-2023,P3,"NR-TLC4 PRODUCTIONS INC.",Toronto,Ontario,Canada,"The Love Club: Tara's Movie Short-Term Compensation Fund 2022-2023  NR-TLC4 PRODUCTIONS INC.",0,0,2022-12-20,29773.76,0.00,Contribution,"COVID-19 Emergency Relief Fund","Amended Contract Signed 24-May-2022"
2022-2023,P3,"2703715 ONTARIO INC.",Toronto,Ontario,Canada,"The Maiden",English,Drama,2022-12-05,317790.00,125000.00,Contribution,"Talent To Watch Program","Amended Contract Signed 02-Jan-2020"
2022-2023,P3,"Level Film Inc.",Toronto,Ontario,Canada,"The Middle Man",English,Comedy,2022-11-04,38677.50,41291.25,Advance,"Marketing Program","Amended Contract Signed 18-Mar-2021"
2022-2023,P3,"Band With Pictures Film Inc. / Les Films Band With Pictures Inc.",Montr�al,Quebec,Canada,"The Moment of Meeting",English,Drama,2022-10-25,30000.00,30000.00,Advance,"Development Program",0
2022-2023,P3,"Experimental Forest Films Inc.","New Westminster","British Columbia",Canada,"The Narrow Edge",English,Drama,2022-12-21,2000.00,2000.00,Contribution,"International Marketing Program",0
2022-2023,P3,"Younger Daughter Films Inc",Toronto,Ontario,Canada,"The Pathway",English,Drama,2022-12-22,30000.00,30000.00,Advance,"Development Program",0
2022-2023,P3,"CCI Productions Inc.",Toronto,Ontario,Canada,"The Reluctant Activist",English,Documentary,2022-11-08,60000.00,60000.00,Advance,"Development Program",0
2022-2023,P3,"Mehr Films Inc.",Toronto,Ontario,Canada,"The River Will Carry Us",English,Drama,2022-12-23,250000.00,250000.00,Contribution,"Talent To Watch Program",0
2022-2023,P3,"TimeLapse Pictures Productions Inc.",Toronto,Ontario,Canada,"The Salish Sea",English,Drama,2022-12-07,30000.00,30000.00,Advance,"Development Program",0
2022-2023,P3,"Vroom Productions Inc.",Dewittville,Quebec,Canada,"The Sanctuary",English,Drama,2022-10-04,30000.00,30000.00,Advance,"Development Program",0
2022-2023,P3,"Flimshow Inc.",Toronto,Ontario,Canada,"THE SHADOW CROWN",English,"Historical Drama",2022-12-21,30000.00,30000.00,Advance,"Development Program",0
2022-2023,P3,"Silent Planet Ontario Productions Inc.",Toronto,Ontario,Canada,"The Silent Planet",English,"Science fiction/Fantasy/Tale",2022-12-15,1150000.00,1150000.00,Investment,"Production Program",0
2022-2023,P3,"CAVE 7 PRODUCTIONS INC.",Toronto,Ontario,Canada,"The Skyjacker's Son",English,Drama,2022-12-07,30000.00,30000.00,Advance,"Development Program",0
2022-2023,P3,"Honalee Productions Inc.",Vancouver,"British Columbia",Canada,"The Smoking Man",English,Thriller,2022-11-18,37000.00,37000.00,Advance,"Development Program",0
2022-2023,P3,"Ubuntu Media Limited",Halifax,"Nova Scotia",Canada,"The Space Between",English,Drama,2022-12-12,30000.00,30000.00,Advance,"Development Program",0
2022-2023,P3,"Interstate 80 Entertainment Inc.",Calgary,Alberta,Canada,"The Summer I Played Ophelia",English,Drama,2022-12-20,30000.00,30000.00,Advance,"Development Program",0
2022-2023,P3,"Nika Productions Inc.",Calgary,Alberta,Canada,"The Summer of Bitter and Sweet",English,Drama,2022-12-08,30000.00,30000.00,Advance,"Development Program",0
2022-2023,P3,"Level Film Inc.",Toronto,Ontario,Canada,"The Swearing Jar",English,Musical,2022-12-21,75240.00,75240.00,Advance,"Marketing Program",0
2022-2023,P3,"MISE EN ABYME INC.",Montreal,Quebec,Canada,"The Tears of Things",English,Drama,2022-12-09,26000.00,26000.00,Advance,"Development Program",0
2022-2023,P3,"Devonshire Productions Inc.",Toronto,Ontario,Canada,"The Thin Red Line",English,Drama,2022-10-05,2000.00,2000.00,Contribution,"International Marketing Program",0
2022-2023,P3,"Spirit of 84 Films Ltd.",Vancouver,"British Columbia",Canada,"The Track",English,Documentary,2022-10-27,2000.00,2000.00,Contribution,"International Marketing Program",0
2022-2023,P3,"White Pine Pictures Inc.",Toronto,Ontario,Canada,"The Unraveling Of America",English,Documentary,2022-11-04,30000.00,30000.00,Advance,"Development Program",0
2022-2023,P3,"Pitchblack Pictures Inc.",Burnaby,"British Columbia",Canada,"The Untitled Tommy Prince Story",English,Drama,2022-10-20,27048.00,27048.00,Advance,"Development Program",0
2022-2023,P3,"Buck Productions Inc.",Toronto,Ontario,Canada,"The Visit",English,"Science fiction/Fantasy/Tale",2022-11-02,60000.00,60000.00,Advance,"Development Program",0
2022-2023,P3,"First Generation Films Inc.",Toronto,Ontario,Canada,"The Warehouse",English,Thriller,2022-12-15,40000.00,40000.00,Advance,"Development Program",0
2022-2023,P3,"Winnipeg Aboriginal Film and Video Festival Inc.",Winnipeg,Manitoba,Canada,"The Winnipeg Aboriginal Film Festival",0,0,2022-11-10,12500.00,12500.00,Contribution,"Promotion Program",0
2022-2023,P3,"Filmoption International Inc.",Westmount,Quebec,Canada,"The Winter Lake",English,Thriller,2022-10-24,30758.00,38592.00,Advance,"Marketing Program","Amended Contract Signed 27-Jul-2021"
2022-2023,P3,"Borrowed Light Films Inc.",Toronto,Ontario,Canada,"The Young Arsonists",English,Drama,2022-10-25,5000.00,5000.00,Contribution,"International Marketing Program",0
2022-2023,P3,"Borrowed Light Films Inc.",Toronto,Ontario,Canada,"The Young Arsonists",English,Drama,2022-10-26,2000.00,2000.00,Contribution,"International Marketing Program",0
2022-2023,P3,"0859098 B.C. Ltd.",Trail,"British Columbia",Canada,"Theatrical Exhibition Program  0859098 B.C. Ltd.",0,0,2022-12-15,100000.00,100000.00,Contribution,"Theatrical Exhibition Program",0
2022-2023,P3,"1000 Islands Entertainment Inc.",Gananoque,Ontario,Canada,"Theatrical Exhibition Program  1000 Islands Entertainment Inc.",0,0,2022-12-14,100000.00,100000.00,Contribution,"Theatrical Exhibition Program",0
2022-2023,P3,"10004176 Manitoba Inc. (Prairie City Cinema)","Portage la Prairie",Manitoba,Canada,"Theatrical Exhibition Program  10004176 Manitoba Inc. (Prairie City Cinema)",0,0,2022-12-15,50000.00,50000.00,Contribution,"Theatrical Exhibition Program",0
2022-2023,P3,"1001898 BC LTD","Prince George","British Columbia",Canada,"Theatrical Exhibition Program  1001898 BC LTD",0,0,2022-12-19,50000.00,50000.00,Contribution,"Theatrical Exhibition Program",0
2022-2023,P3,"1124276 bc LTD",oliver,"British Columbia",Canada,"Theatrical Exhibition Program  1124276 bc LTD",0,0,2022-12-13,50000.00,50000.00,Contribution,"Theatrical Exhibition Program",0
2022-2023,P3,"1186804 Alberta Ltd. O/A Park Theatre","High Prairie",Alberta,Canada,"Theatrical Exhibition Program  1186804 Alberta Ltd. O/A Park Theatre",0,0,2022-12-17,50000.00,50000.00,Contribution,"Theatrical Exhibition Program",0
2022-2023,P3,"1271542 B.C. Ltd.",Revelstoke,"British Columbia",Canada,"Theatrical Exhibition Program  1271542 B.C. Ltd.",0,0,2022-12-14,50000.00,50000.00,Contribution,"Theatrical Exhibition Program",0
2022-2023,P3,"1476170 Alberta Ltd.","Pincher Creek",Alberta,Canada,"Theatrical Exhibition Program  1476170 Alberta Ltd.",0,0,2022-12-22,50000.00,50000.00,Contribution,"Theatrical Exhibition Program",0
2022-2023,P3,"1901355 Ontario Inc.",GRAVENHURST,Ontario,Canada,"Theatrical Exhibition Program  1901355 Ontario Inc.",0,0,2022-12-14,50000.00,50000.00,Contribution,"Theatrical Exhibition Program",0
2022-2023,P3,"2018180 Ontario Ltd.",Windsor,Ontario,Canada,"Theatrical Exhibition Program  2018180 Ontario Ltd.",0,0,2022-12-14,500000.00,500000.00,Contribution,"Theatrical Exhibition Program",0
2022-2023,P3,"2145732 Alberta L.T.D.",Barrhead,Alberta,Canada,"Theatrical Exhibition Program  2145732 Alberta L.T.D.",0,0,2022-12-20,50000.00,50000.00,Contribution,"Theatrical Exhibition Program",0
2022-2023,P3,"344476 B.C. Limited dba Historic Gem Theatre","Grand Forks","British Columbia",Canada,"Theatrical Exhibition Program  344476 B.C. Limited dba Historic Gem Theatre",0,0,2022-12-14,50000.00,50000.00,Contribution,"Theatrical Exhibition Program",0
2022-2023,P3,"363909 British Columbia Ltd.",Markham,Ontario,Canada,"Theatrical Exhibition Program  363909 British Columbia Ltd.",0,0,2022-12-14,50000.00,50000.00,Contribution,"Theatrical Exhibition Program",0
2022-2023,P3,"525661 B.C. Ltd.",FERNIE,"British Columbia",Canada,"Theatrical Exhibition Program  525661 B.C. Ltd.",0,0,2022-12-19,50000.00,50000.00,Contribution,"Theatrical Exhibition Program",0
2022-2023,P3,"633970 N.B. Limited O/A North Shore Cinema",Campbellton,"New Brunswick",Canada,"Theatrical Exhibition Program  633970 N.B. Limited O/A North Shore Cinema",0,0,2022-12-15,50000.00,50000.00,Contribution,"Theatrical Exhibition Program",0
2022-2023,P3,"681210 Alberta Limited",Okotoks,Alberta,Canada,"Theatrical Exhibition Program  681210 Alberta Limited",0,0,2022-12-15,50000.00,50000.00,Contribution,"Theatrical Exhibition Program",0
2022-2023,P3,"Afendy Theaters Ltd.",Leduc,Alberta,Canada,"Theatrical Exhibition Program  Afendy Theaters Ltd.",0,0,2022-12-15,100000.00,100000.00,Contribution,"Theatrical Exhibition Program",0
2022-2023,P3,"Alecait Holdings Incorporated",Uxbridge,Ontario,Canada,"Theatrical Exhibition Program  Alecait Holdings Incorporated",0,0,2022-12-14,50000.00,50000.00,Contribution,"Theatrical Exhibition Program",0
2022-2023,P3,"Amherst Theatre Ltd.",Amherst,"Nova Scotia",Canada,"Theatrical Exhibition Program  Amherst Theatre Limited",0,0,2022-12-19,50000.00,50000.00,Contribution,"Theatrical Exhibition Program",0
2022-2023,P3,"Apollo Cinemas Inc.",Bathurst,"New Brunswick",Canada,"Theatrical Exhibition Program  Apollo Cinemas Inc.",0,0,2022-12-20,50000.00,50000.00,Contribution,"Theatrical Exhibition Program",0
2022-2023,P3,"Bonavista Historic Townscape Foundation (operating Garrick Theatre)",Bonavista,Newfoundland/Labrador,Canada,"Theatrical Exhibition Program  Bonavista Historic Townscape Foundation (operating Garrick Theatre)",0,0,2022-12-22,50000.00,50000.00,Contribution,"Theatrical Exhibition Program",0
2022-2023,P3,"Carbon Arc Cinema Co-op Ltd.",Halifax,"Nova Scotia",Canada,"Theatrical Exhibition Program  Carbon Arc Cinema Co-op Ltd.",0,0,2022-12-22,50000.00,50000.00,Contribution,"Theatrical Exhibition Program",0
2022-2023,P3,"Carnival Cinemas Corp.","Red Deer",Alberta,Canada,"Theatrical Exhibition Program  Carnival Cinemas Corp.",0,0,2022-12-14,50000.00,50000.00,Contribution,"Theatrical Exhibition Program",0
2022-2023,P3,"CastlePoint Inc.",Edmonton,Alberta,Canada,"Theatrical Exhibition Program  CastlePoint Inc.",0,0,2022-12-19,50000.00,50000.00,Contribution,"Theatrical Exhibition Program",0
2022-2023,P3,"CINE STARZ LANGELIER INC.",Saint-Leonard,Quebec,Canada,"Theatrical Exhibition Program  CINE STARZ LANGELIER INC.",0,0,2022-12-14,300000.00,300000.00,Contribution,"Theatrical Exhibition Program",0
2022-2023,P3,"Cinema Peninsule Lt�e",Tracadie,"New Brunswick",Canada,"Theatrical Exhibition Program  Cinema Peninsule Lt�e",0,0,2022-12-15,50000.00,50000.00,Contribution,"Theatrical Exhibition Program",0
2022-2023,P3,"Cineplex Inc.",Toronto,Ontario,Canada,"Theatrical Exhibition Program  Cineplex Inc.",0,0,2022-12-16,500000.00,500000.00,Contribution,"Theatrical Exhibition Program",0
2022-2023,P3,"Circle Theatre Inc.",Alliston,Ontario,Canada,"Theatrical Exhibition Program  Circle Theatre Inc.",0,0,2022-12-16,50000.00,50000.00,Contribution,"Theatrical Exhibition Program",0
2022-2023,P3,"Clear Your Desk Enterprises Ltd.",Listowel,Ontario,Canada,"Theatrical Exhibition Program  Clear Your Desk Enterprises Ltd.",0,0,2022-12-16,150000.00,150000.00,Contribution,"Theatrical Exhibition Program",0
2022-2023,P3,"Cochrane Theatres Inc",Cochrane,Alberta,Canada,"Theatrical Exhibition Program  Cochrane Theatres Inc",0,0,2022-12-14,50000.00,50000.00,Contribution,"Theatrical Exhibition Program",0
2022-2023,P3,"Cottonwood 4 Cinemas Ltd",Chilliwack,"British Columbia",Canada,"Theatrical Exhibition Program  Cottonwood 4 Cinemas Ltd",0,0,2022-12-21,50000.00,50000.00,Contribution,"Theatrical Exhibition Program",0
2022-2023,P3,"Dauphin Community Cinema Inc.",Dauphin,Manitoba,Canada,"Theatrical Exhibition Program  Dauphin Community Cinema Inc.",0,0,2022-12-16,50000.00,50000.00,Contribution,"Theatrical Exhibition Program",0
2022-2023,P3,"DCG INVESTMENTS INC.",Duncan,"British Columbia",Canada,"Theatrical Exhibition Program  DCG INVESTMENTS INC.",0,0,2022-12-14,150000.00,150000.00,Contribution,"Theatrical Exhibition Program",0
2022-2023,P3,"EHRA FEATURES 15 INC.",Trenton,Ontario,Canada,"Theatrical Exhibition Program  EHRA FEATURES 15 INC.",0,0,2022-12-14,50000.00,50000.00,Contribution,"Theatrical Exhibition Program",0
2022-2023,P3,"Evergreen Village Inc",Steinbach,Manitoba,Canada,"Theatrical Exhibition Program  Evergreen Village Inc",0,0,2022-12-15,50000.00,50000.00,Contribution,"Theatrical Exhibition Program",0
2022-2023,P3,"Film.Ca Cinemas Inc.",Oakville,Ontario,Canada,"Theatrical Exhibition Program  Film.Ca Cinemas Inc.",0,0,2022-12-14,50000.00,50000.00,Contribution,"Theatrical Exhibition Program",0
2022-2023,P3,"First Run Theatres Inc.",Vancouver,"British Columbia",Canada,"Theatrical Exhibition Program  First Run Theatres Inc.",0,0,2022-12-19,50000.00,50000.00,Contribution,"Theatrical Exhibition Program",0
2022-2023,P3,"Fox Theatre Ltd.",Toronto,Ontario,Canada,"Theatrical Exhibition Program  Fox Theatre Ltd.",0,0,2022-12-19,150000.00,150000.00,Contribution,"Theatrical Exhibition Program",0
2022-2023,P3,"G Rivalin Enterprises Ltd.","The Pas",Manitoba,Canada,"Theatrical Exhibition Program  G Rivalin Enterprises Ltd.",0,0,2022-12-15,100000.00,100000.00,Contribution,"Theatrical Exhibition Program",0
2022-2023,P3,"Hollywood Cinema Caprice Ltd.",Surrey,"British Columbia",Canada,"Theatrical Exhibition Program  Hollywood Cinema Caprice Ltd.",0,0,2022-12-13,150000.00,150000.00,Contribution,"Theatrical Exhibition Program",0
2022-2023,P3,"Hot Docs",Toronto,Ontario,Canada,"Theatrical Exhibition Program  Hot Docs",0,0,2022-12-20,50000.00,50000.00,Contribution,"Theatrical Exhibition Program",0
2022-2023,P3,"Hyland Cinema Inc.",London,Ontario,Canada,"Theatrical Exhibition Program  Hyland Cinema Inc.",0,0,2022-12-16,50000.00,50000.00,Contribution,"Theatrical Exhibition Program",0
2022-2023,P3,"Indian Head Theatre & Community Arts Inc.","Indian Head",Saskatchewan,Canada,"Theatrical Exhibition Program  Indian Head Theatre & Community Arts Inc.",0,0,2022-12-21,50000.00,50000.00,Contribution,"Theatrical Exhibition Program",0
2022-2023,P3,"Kamloops Film Society",Kamloops,"British Columbia",Canada,"Theatrical Exhibition Program  Kamloops Film Society",0,0,2022-12-20,100000.00,100000.00,Contribution,"Theatrical Exhibition Program",0
2022-2023,P3,"Kay Meek Arts Society","West Vancouver","British Columbia",Canada,"Theatrical Exhibition Program  Kay Meek Arts Society",0,0,2022-12-15,50000.00,50000.00,Contribution,"Theatrical Exhibition Program",0
2022-2023,P3,"Kicking Horse Movies Ltd.",Golden,"British Columbia",Canada,"Theatrical Exhibition Program  Kicking Horse Movies Ltd.",0,0,2022-12-21,50000.00,50000.00,Contribution,"Theatrical Exhibition Program",0
2022-2023,P3,"Kingston Canadian Film Festival",Kingston,Ontario,Canada,"Theatrical Exhibition Program  Kingston Canadian Film Festival",0,0,2022-12-19,50000.00,50000.00,Contribution,"Theatrical Exhibition Program",0
2022-2023,P3,"Lakes District Film Appreciation Society","Burns Lake","British Columbia",Canada,"Theatrical Exhibition Program  Lakes District Film Appreciation Society",0,0,2022-12-23,50000.00,50000.00,Contribution,"Theatrical Exhibition Program",0
2022-2023,P3,"Landmark Cinemas Holding Ltd.",Calgary,Alberta,Canada,"Theatrical Exhibition Program  Landmark Cinemas Holding Ltd.",0,0,2022-12-20,500000.00,500000.00,Contribution,"Theatrical Exhibition Program",0
2022-2023,P3,"MAGIC LANTERN THEATRES LTD.",Edmonton,Alberta,Canada,"Theatrical Exhibition Program  MAGIC LANTERN THEATRES LTD.",0,0,2022-12-19,500000.00,500000.00,Contribution,"Theatrical Exhibition Program",0
2022-2023,P3,"May Theatres (1984) Limited","Sherwood Park",Alberta,Canada,"Theatrical Exhibition Program  May Theatres (1984) Limited",0,0,2022-12-20,200000.00,200000.00,Contribution,"Theatrical Exhibition Program",0
2022-2023,P3,"Metro Cinema Society",Edmonton,Alberta,Canada,"Theatrical Exhibition Program  Metro Cinema Society",0,0,2022-12-15,50000.00,50000.00,Contribution,"Theatrical Exhibition Program",0
2022-2023,P3,"Moosomin and District Arts Council",Moosomin,Saskatchewan,Canada,"Theatrical Exhibition Program  Moosomin and District Arts Council",0,0,2022-12-15,50000.00,50000.00,Contribution,"Theatrical Exhibition Program",0
2022-2023,P3,"Muskoka Cinema 3 Inc",Bracebridge,Ontario,Canada,"Theatrical Exhibition Program  Muskoka Cinema 3 Inc",0,0,2022-12-20,50000.00,50000.00,Contribution,"Theatrical Exhibition Program",0
2022-2023,P3,"Napier Theatre",Drumheller,Alberta,Canada,"Theatrical Exhibition Program  Napier Theatre",0,0,2022-12-16,50000.00,50000.00,Contribution,"Theatrical Exhibition Program",0
2022-2023,P3,"Nelson Civic Theatre Society",Nelson,"British Columbia",Canada,"Theatrical Exhibition Program  Nelson Civic Theatre Society",0,0,2022-12-14,100000.00,100000.00,Contribution,"Theatrical Exhibition Program",0
2022-2023,P3,"Nunavut Entertainment Inc.","Clyde River",Nunavut,Canada,"Theatrical Exhibition Program  Nunavut Entertainment Inc.",0,0,2022-12-21,50000.00,50000.00,Contribution,"Theatrical Exhibition Program",0
2022-2023,P3,"Okanagan Screen Arts Society",Vernon,"British Columbia",Canada,"Theatrical Exhibition Program  Okanagan Screen Arts Society",0,0,2022-12-14,50000.00,50000.00,Contribution,"Theatrical Exhibition Program",0
2022-2023,P3,"OMNI Creations & Ideas Inc",Creston,"British Columbia",Canada,"Theatrical Exhibition Program  OMNI Creations & Ideas Inc",0,0,2022-12-21,50000.00,50000.00,Contribution,"Theatrical Exhibition Program",0
2022-2023,P3,"Orpheum Theatre Limited",Estevan,Saskatchewan,Canada,"Theatrical Exhibition Program  Orpheum Theatre Limited",0,0,2022-12-13,50000.00,50000.00,Contribution,"Theatrical Exhibition Program",0
2022-2023,P3,"Pacific Cinematheque Pacifique",Vancouver,"British Columbia",Canada,"Theatrical Exhibition Program  Pacific Cinematheque Pacifique",0,0,2022-12-14,50000.00,50000.00,Contribution,"Theatrical Exhibition Program",0
2022-2023,P3,"Paradise Cinemas Ltd.","Williams Lake","British Columbia",Canada,"Theatrical Exhibition Program  Paradise Cinemas Ltd.",0,0,2022-12-15,50000.00,50000.00,Contribution,"Theatrical Exhibition Program",0
2022-2023,P3,"Patricia Entertainment Company Ltd.","Powell River","British Columbia",Canada,"Theatrical Exhibition Program  Patricia Entertainment Company Ltd.",0,0,2022-12-14,50000.00,50000.00,Contribution,"Theatrical Exhibition Program",0
2022-2023,P3,"Premier Operating Corporation Ltd.","North York",Ontario,Canada,"Theatrical Exhibition Program  Premier Operating Corporation Ltd.",0,0,2022-12-21,300000.00,300000.00,Contribution,"Theatrical Exhibition Program",0
2022-2023,P3,"Rairdan Services, Inc.",Stettler,Alberta,Canada,"Theatrical Exhibition Program  Rairdan Services, Inc.",0,0,2022-12-14,50000.00,50000.00,Contribution,"Theatrical Exhibition Program",0
2022-2023,P3,"Reel Attractions Ltd.",Humboldt,Saskatchewan,Canada,"Theatrical Exhibition Program  Reel Attractions Ltd.",0,0,2022-12-13,50000.00,50000.00,Contribution,"Theatrical Exhibition Program",0
2022-2023,P3,"Revue Film Society",Toronto,Ontario,Canada,"Theatrical Exhibition Program  Revue Film Society",0,0,2022-12-15,50000.00,50000.00,Contribution,"Theatrical Exhibition Program",0
2022-2023,P3,"ROTARY MOVIE PRESENTATION SOCIETY",Hinton,Alberta,Canada,"Theatrical Exhibition Program  ROTARY MOVIE PRESENTATION SOCIETY",0,0,2022-12-19,50000.00,50000.00,Contribution,"Theatrical Exhibition Program",0
2022-2023,P3,"Salmar Community Association","Salmon Arm","British Columbia",Canada,"Theatrical Exhibition Program  Salmar Community Association",0,0,2022-12-15,100000.00,100000.00,Contribution,"Theatrical Exhibition Program",0
2022-2023,P3,"Shameless Lee Productions Ltd.",Vancouver,"British Columbia",Canada,"Theatrical Exhibition Program  Shameless Lee Productions Ltd.",0,0,2022-12-19,50000.00,50000.00,Contribution,"Theatrical Exhibition Program",0
2022-2023,P3,"Sidney Film Corp.",Sidney,"British Columbia",Canada,"Theatrical Exhibition Program  Sidney Film Corp.",0,0,2022-12-15,50000.00,50000.00,Contribution,"Theatrical Exhibition Program",0
2022-2023,P3,"South Cariboo Movie Theatre Inc.","100 Mile House","British Columbia",Canada,"Theatrical Exhibition Program  South Cariboo Movie Theatre Inc.",0,0,2022-12-13,50000.00,50000.00,Contribution,"Theatrical Exhibition Program",0
2022-2023,P3,"Sudbury Downtown Independent Cinema Co-operative Corp.",Sudbury,Ontario,Canada,"Theatrical Exhibition Program  Sudbury Downtown Independent Cinema Co-operative Corp.",0,0,2022-12-16,50000.00,50000.00,Contribution,"Theatrical Exhibition Program",0
2022-2023,P3,"The Book Shelf of Guelph Limited",Guelph,Ontario,Canada,"Theatrical Exhibition Program  The Book Shelf of Guelph Limited",0,0,2022-12-16,50000.00,50000.00,Contribution,"Theatrical Exhibition Program",0
2022-2023,P3,"The Movie Mill Inc.",Lethbridge,Alberta,Canada,"Theatrical Exhibition Program  The Movie Mill Inc.",0,0,2022-12-14,50000.00,50000.00,Contribution,"Theatrical Exhibition Program",0
2022-2023,P3,"The Princess Cinema Inc",Waterloo,Ontario,Canada,"Theatrical Exhibition Program  The Princess Cinema Inc",0,0,2022-12-19,150000.00,150000.00,Contribution,"Theatrical Exhibition Program",0
2022-2023,P3,"The Regent Theatre Foundation",Picton,Ontario,Canada,"Theatrical Exhibition Program  The Regent Theatre Foundation",0,0,2022-12-21,50000.00,50000.00,Contribution,"Theatrical Exhibition Program",0
2022-2023,P3,"The Screening Room Inc.",Kingston,Ontario,Canada,"Theatrical Exhibition Program  The Screening Room Inc.",0,0,2022-12-16,50000.00,50000.00,Contribution,"Theatrical Exhibition Program",0
2022-2023,P3,"TILLICUM TWIN-THEATRES LTD.",Terrace,"British Columbia",Canada,"Theatrical Exhibition Program  TILLICUM TWIN-THEATRES LTD.",0,0,2022-12-13,50000.00,50000.00,Contribution,"Theatrical Exhibition Program",0
2022-2023,P3,"University of Victoria Students' Society",Victoria,"British Columbia",Canada,"Theatrical Exhibition Program  University of Victoria Students' Society",0,0,2022-12-21,50000.00,50000.00,Contribution,"Theatrical Exhibition Program",0
2022-2023,P3,"Victoria Independent Film and Video Festival",Victoria,"British Columbia",Canada,"Theatrical Exhibition Program  Victoria Independent Film and Video Festival",0,0,2022-12-21,50000.00,50000.00,Contribution,"Theatrical Exhibition Program",0
2022-2023,P3,"Westdale Cinema Group",Hamilton,Ontario,Canada,"Theatrical Exhibition Program  Westdale Cinema Group",0,0,2022-12-16,50000.00,50000.00,Contribution,"Theatrical Exhibition Program",0
2022-2023,P3,"Winnipeg Film Group Inc.",Winnipeg,Manitoba,Canada,"Theatrical Exhibition Program  Winnipeg Film Group Inc.",0,0,2022-12-15,50000.00,50000.00,Contribution,"Theatrical Exhibition Program",0
2022-2023,P3,"Yukon Film Society",Whitehorse,Yukon,Canada,"Theatrical Exhibition Program  Yukon Film Society",0,0,2022-12-16,50000.00,50000.00,Contribution,"Theatrical Exhibition Program",0
2022-2023,P3,"Intuitive Pictures Inc.",Montr�al,Quebec,Canada,"Theft of Fire",English,Documentary,2022-11-24,2000.00,2000.00,Contribution,"International Marketing Program",0
2022-2023,P3,"THERE THERE FILM INC.",Dartmouth,"Nova Scotia",Canada,"There, There",English,Drama,2022-12-20,420000.00,420000.00,Contribution,"Production Program",0
2022-2023,P3,"136469 Canada Limited o/a Sphinx Productions",Toronto,Ontario,Canada,"Thinker's Lodge",English,Documentary,2022-11-08,30000.00,30000.00,Advance,"Development Program",0
2022-2023,P3,"TTPS Production Ltd.",Calgary,Alberta,Canada,"This Too Shall Pass",English,Drama,2022-12-19,400000.00,400000.00,Investment,"Production Program",0
2022-2023,P3,"1000210498 ONTARIO INC.",Toronto,Ontario,Canada,"Thriving: A Dissociated Reverie",English,Comedy,2022-12-05,2000.00,2000.00,Contribution,"International Marketing Program",0
2022-2023,P3,"Elgin Road Productions Ltd.","Oak Bay","British Columbia",Canada,"Throwback Thursday",English,Comedy,2022-12-12,4000.00,4000.00,Contribution,"International Marketing Program",0
2022-2023,P3,"Notice Pictures Inc.",Toronto,Ontario,Canada,"To Kill A Tiger (aka Send Us Your Brother)",English,Documentary,2022-11-29,5000.00,5000.00,Contribution,"International Marketing Program",0
2022-2023,P3,"Echo Media T&B Film Production Inc.",Montr�al,Quebec,Canada,"Toupie et Binou, le film",French,Action/Adventure,2022-12-15,90000.00,90000.00,Investment,"Production Program",0
2022-2023,P3,"Fondation Qu�bec cin�ma",Montr�al,Quebec,Canada,"Tourn�e Qu�bec Cin�ma",0,0,2022-12-20,40000.00,40000.00,Contribution,"Promotion Program",0
2022-2023,P3,"Hope of Glory Pictures Ltd.",Burnaby,"British Columbia",Canada,Treehouse,English,Thriller,2022-10-23,30000.00,30000.00,Advance,"Development Program",0
2022-2023,P3,"Orca Cove Media Inc.",Saanichton,"British Columbia",Canada,"Tzinquaw Opera",English,Documentary,2022-12-07,30000.00,30000.00,Advance,"Development Program",0
2022-2023,P3,"Inzu groupe m�dia Inc.",Montreal,Quebec,Canada,"Un �t� sur Abidjan",French,"Romantic Comedy",2022-11-29,30000.00,30000.00,Advance,"Development Program",0
2022-2023,P3,"Forum Films 2005 Inc.",Montr�al,Quebec,Canada,"Un film de p�che",French,Drama,2022-10-07,30000.00,30000.00,Advance,"Development Program",0
2022-2023,P3,"PRODUCTIONS UGH INC.",Montr�al,Quebec,Canada,"Un grand homme",French,Drama,2022-11-04,1995000.00,1700000.00,Investment,"Production Program","Amended Contract Signed 21-Mar-2022"
2022-2023,P3,"Monkeys & Parrots Corp.",Toronto,Ontario,Canada,"Under the Red Umbrella",English,Drama,2022-12-07,30000.00,30000.00,Advance,"Development Program",0
2022-2023,P3,"Maison 4:3 Inc.",Montr�al,Quebec,Canada,"Une femme respectable",French,Drama,2022-12-13,69210.00,69210.00,Advance,"Marketing Program",0
2022-2023,P3,"Films S�ville Inc. (Les)",Montr�al,Quebec,Canada,"Une r�vision",French,Drama,2022-11-22,115759.00,203474.00,Advance,"Marketing Program","Amended Contract Signed 01-Oct-2021"
2022-2023,P3,"Le Foyer Films inc.",Montreal,Quebec,Canada,"Une splendeur de vivre",French,Drama,2022-12-23,2000.00,2000.00,Contribution,"International Marketing Program",0
2022-2023,P3,"New Real Films Inc.",Toronto,Ontario,Canada,"Unidentified Donald",English,Drama,2022-11-04,20000.00,20000.00,Advance,"Development Program",0
2022-2023,P3,"Toronto Reel Asian International Film Festival",Toronto,Ontario,Canada,"Unsung Voices Program",0,0,2022-12-22,25000.00,25000.00,Contribution,"Promotion Program",0
2022-2023,P3,"Cardinal Pictures Inc.","East York",Ontario,Canada,"Untitled Chell Stephen Project",English,Drama,2022-11-17,15000.00,15000.00,Advance,"Development Program",0
2022-2023,P3,"UHURU PRODUCTIONS LTD",Vancouver,"British Columbia",Canada,"UNTITLED DEAR BECKY FEATURE FILM",English,Thriller,2022-12-14,25000.00,25000.00,Advance,"Development Program",0
2022-2023,P3,"Cardinal Pictures Inc.","East York",Ontario,Canada,"Untitled Grayson Moore Project",English,Horror,2022-11-17,55000.00,55000.00,Advance,"Development Program",0
2022-2023,P3,"Sara Fost Pictures Inc.",St-John's,Newfoundland/Labrador,Canada,"Untitled Guardian Angel Project",English,Comedy,2022-12-08,30000.00,30000.00,Advance,"Development Program",0
2022-2023,P3,"Scarborough Pictures Inc.",Toronto,Ontario,Canada,"Untitled Warren Hart Project",English,Drama,2022-12-15,28000.00,28000.00,Advance,"Development Program",0
2022-2023,P3,"9215-8534 Qu�bec Inc. (Parallaxes)","Ste Famille",Quebec,Canada,VALIDE,French,"Science fiction/Fantasy/Tale",2022-11-25,30000.00,30000.00,Advance,"Development Program",0
2022-2023,P3,"Microscope Inc.",Montr�al,Quebec,Canada,"Viking (a.k.a. Avant Mars)",French,Comedy,2022-11-24,2000.00,2000.00,Contribution,"International Marketing Program",0
2022-2023,P3,"Microscope Inc.",Montr�al,Quebec,Canada,"Viking (a.k.a. Avant Mars)",French,Comedy,2022-12-22,2000.00,2000.00,Contribution,"International Marketing Program",0
2022-2023,P3,"Sph�re Films International inc.",Montr�al,Quebec,Canada,"Viking (a.k.a. Avant Mars)",French,Comedy,2022-11-15,2000.00,2000.00,Contribution,"International Marketing Program",0
2022-2023,P3,"Marina Cordoni Entertainment Inc.",Toronto,Ontario,Canada,"Wanda Woman",English,Drama,2022-12-08,30000.00,30000.00,Advance,"Development Program",0
2022-2023,P3,"Cinethetica Corp",Hamilton,Ontario,Canada,"We Are Not the Monsters",English,Horror,2022-12-09,28450.00,28450.00,Advance,"Development Program",0
2022-2023,P3,"Vortex Media Limited",Toronto,Ontario,Canada,"We're All In This Together",English,Drama,2022-11-29,49770.00,49770.00,Advance,"Marketing Program",0
2022-2023,P3,"The Offners Productions Inc",Gibsons,"British Columbia",Canada,WEST,French,Drama,2022-11-29,30000.00,30000.00,Advance,"Development Program",0
2022-2023,P3,"Gold Star Productions Inc.","West Vancouver","British Columbia",Canada,"West of the Sun",English,Western,2022-11-09,60000.00,60000.00,Advance,"Development Program",0
2022-2023,P3,"Next Moon Media Inc.","Port Moody","British Columbia",Canada,"What Comes Next",English,Drama,2022-12-16,500000.00,500000.00,Investment,"Production Program",0
2022-2023,P3,"Too Many Words Inc.",Toronto,Ontario,Canada,"When I Grow Up",English,Drama,2022-12-07,30000.00,30000.00,Advance,"Development Program",0
2022-2023,P3,"Rellow Media Incorporated",Ajax,Ontario,Canada,"When Secrets Take Flight",English,Drama,2022-12-12,30000.00,30000.00,Advance,"Development Program",0
2022-2023,P3,"Whistler Film Festival Society",Whistler,"British Columbia",Canada,"Whistler Film Festival - Producers Lab + Screenwriters Lab",0,0,2022-11-16,40500.00,40500.00,Contribution,"Promotion Program",0
2022-2023,P3,"Whistler Film Festival Society",Whistler,"British Columbia",Canada,"Whistler Film Festival + Content Summit",0,0,2022-10-11,184068.00,184068.00,Contribution,"Promotion Program",0
2022-2023,P3,"Motel Pictures Inc.",Lynden,Ontario,Canada,"White Creek File",English,Drama,2022-10-27,60000.00,60000.00,Advance,"Development Program",0
2022-2023,P3,"Wide Open Exposure Productions Limited",Montr�al,Quebec,Canada,"White, White North",English,Documentary,2022-12-07,18500.00,18500.00,Advance,"Development Program",0
2022-2023,P3,"Voice Pictures Inc.",Calgary,Alberta,Canada,"Witches X",English,Horror,2022-12-02,30000.00,30000.00,Advance,"Development Program",0
2022-2023,P3,"Byron A. Martin Productions Inc.",Toronto,Ontario,Canada,"Wolverine Hotel",English,Drama,2022-12-15,4000.00,4000.00,Contribution,"International Marketing Program",0
2022-2023,P3,"Hometeam Films Inc.",Toronto,Ontario,Canada,"Wrong End of the Rainbow",English,Thriller,2022-12-15,30000.00,30000.00,Advance,"Development Program",0
2022-2023,P3,"9393-1947 Qu�bec inc.",Montreal,Quebec,Canada,"Year of the Rat",English,Drama,2022-12-13,30000.00,30000.00,Advance,"Development Program",0
2022-2023,P3,"Banger Films Inc.",Toronto,Ontario,Canada,"Year of the Rocket",English,Documentary,2022-11-08,31439.00,31439.00,Advance,"Development Program",0
2022-2023,P3,"Yorkton Short Film and Video Festival Inc.",Yorkton,Saskatchewan,Canada,"Yorkton Film Festival",0,0,2022-10-19,52045.00,52045.00,Contribution,"Promotion Program",0
2022-2023,P3,"12545951 Canada Inc.",Dewittville,Quebec,Canada,"You can Live Forever",English,Drama,2022-11-24,2000.00,2000.00,Contribution,"International Marketing Program",0
2022-2023,P3,"La Bo�te � Fanny inc.",Montr�al,Quebec,Canada,Zipper,French,Musical,2022-11-25,22500.00,22500.00,Advance,"Development Program",0
